{"text_format":"1","workbook":"xlsx","n_sheets":4,"sheets":["Notes","Orgs","Areas","BS"],"not_rendered":{"charts":0,"images":0,"macros":1,"external_links":0,"defined_names":5,"comments":0,"pivot_tables":0},"unopened":[],"bounds":{"document_bytes":16777216,"sheet_cells":100000,"rows_first":2000,"rows_last":500,"rows_between":2000,"halvings":0,"cell_chars":16384,"cell_head_chars":4096},"cells_cut":0,"cells_raw":0,"read":"whole","date_system":"1900"}

{"sheet":"Notes","index":0,"n_rows":2,"n_cols":8,"rows_kept":2,"cut":false,"hidden":false,"merged":[]}
[]
[" Staff Friends and Family Test (FFT) data - Q4_2014-15",null,null,null,null,null,null,"   Show data for:"]

{"sheet":"Orgs","index":1,"n_rows":252,"n_cols":31,"rows_kept":252,"cut":false,"hidden":false,"merged":[[5,2,6,3],[5,5,6,5],[8,1,9,1],[8,2,9,2],[8,3,9,3],[8,4,9,4],[8,5,9,5],[8,24,8,30],[8,6,9,6],[8,7,9,7],[8,8,9,8],[8,9,9,9],[8,10,8,16],[8,17,8,23]]}
[null,"Friends and Family Test - Staff Q4_2014-15"]
[]
[]
[null,null,"                                                                       Show data by:","                                                     Show data by:"]
[]
[null,null,"    Sort data by:           "]
[]
[]
[null,"Area Team Code","Org Code","Org Name","Total Responses","HSCIC Workforce Headcount","Percentage Recommended - Work","Percentage Not  Recommended - Work","Percentage Recommended - Care","Percentage Not  Recommended - Care","Breakdown of Responses - Work",null,null,null,null,null,null,"Breakdown of Responses - Care",null,null,null,null,null,null,"Mode of Collection"]
[null,null,null,null,null,null,null,null,null,null,"Extremely Likely","Likely","Neither","Unlikely","Extremely Unlikely","Don't Know","No Response","Extremely Likely","Likely","Neither","Unlikely","Extremely Unlikely","Don't Know","No Response","SMS/Text/\nSmartphone app","Electronic tablet/Kiosk","Paper survey at work","Paper survey sent to home ","Telephone survey","Online survey","Other"]
[null,null,null,"England        ",151605,1155066,0.61651478270199223,0.18932185318553985,0.7721615443230887,7.5190834592195499E-2,31487,60452,27643,17153,11080,1312,2478,47613,67907,20881,7538,3711,1956,1999,0,1332,15591,2360,793,131525,4]
[null,null,null,"Selection (excluding suppressed data)        ",{"$f":"SUBTOTAL(9,E13:E999)","v":151605},1155066,{"$f":"(K12+L12)/SUM(K12:P12)","v":0.61651478270199223},{"$f":"(O12+N12)/SUM(K12:P12)","v":0.18932185318553985},{"$f":"(R12+S12)/SUM(R12:W12)","v":0.7721615443230887},{"$f":"(U12+V12)/SUM(R12:W12)","v":7.5190834592195499E-2},{"$f":"SUBTOTAL(9,K13:K999)","v":31487},60452,27643,17153,{"$f":"SUBTOTAL(9,O13:O999)","v":11080},1312,2478,47613,67907,20881,7538,3711,1956,{"$f":"SUBTOTAL(9,X13:X999)","v":1999},0,1332,15591,2360,793,131525,4]
[null,"Q44","RY7","WIRRAL COMMUNITY NHS TRUST",129,1346,0.625,0.203125,0.8527131782945736,5.4263565891472867E-2,52,28,18,7,19,4,1,78,32,10,5,2,2,0,0,18,0,0,0,111,0]
[null,"Q44","RTV","5 BOROUGHS PARTNERSHIP NHS FOUNDATION TRUST",66,3205,0.72727272727272729,0.15151515151515152,0.84848484848484851,4.5454545454545456E-2,20,28,8,5,5,0,0,24,32,5,1,2,2,0,0,0,0,0,0,66,0]
[null,"Q44","RBT","MID CHESHIRE HOSPITALS NHS FOUNDATION TRUST",75,3562,0.54666666666666663,0.24,0.66666666666666663,0.17333333333333334,21,20,14,6,12,2,0,20,30,12,7,6,0,0,0,0,50,0,0,25,0]
[null,"Q44","RWW","WARRINGTON AND HALTON HOSPITALS NHS FOUNDATION TRUST",219,4026,0.64840182648401823,0.21004566210045661,0.68949771689497719,0.16894977168949771,64,78,31,32,14,0,0,70,81,31,22,15,0,0,0,0,0,219,0,0,0]
[null,"Q44","RJN","EAST CHESHIRE NHS TRUST",198,3500,0.62121212121212122,0.18686868686868688,0.79081632653061229,8.673469387755102E-2,58,65,36,27,10,2,0,82,73,22,14,3,2,2,0,0,25,0,0,173,0]
[null,"Q44","RBL","WIRRAL UNIVERSITY TEACHING HOSPITAL NHS FOUNDATION TRUST",377,5708,0.50797872340425532,0.34042553191489361,0.69518716577540107,0.16310160427807488,75,116,53,52,76,4,1,109,151,48,32,29,5,3,0,0,377,0,0,0,0]
[null,"Q44","RJR","COUNTESS OF CHESTER HOSPITAL NHS FOUNDATION TRUST",235,4008,0.7350427350427351,0.10256410256410256,0.85531914893617023,5.106382978723404E-2,75,97,35,15,9,3,1,103,98,16,6,6,6,0,0,0,100,0,0,135,0]
[null,"Q44","RXA","CHESHIRE AND WIRRAL PARTNERSHIP NHS FOUNDATION TRUST",121,3547,0.55371900826446285,0.1487603305785124,0.7024793388429752,6.6115702479338845E-2,19,48,36,13,5,0,0,28,57,27,6,2,1,0,0,0,0,0,0,121,0]
[null,"Q44","REN","THE CLATTERBRIDGE CANCER CENTRE NHS FOUNDATION TRUST",106,982,0.69811320754716977,9.4339622641509441E-2,0.96226415094339623,9.433962264150943E-3,39,35,21,7,3,1,0,87,15,2,0,1,1,0,0,0,6,0,0,100,0]
[null,"Q45","RX3","TEES, ESK AND WEAR VALLEYS NHS FOUNDATION TRUST",2822,5930,0.71738357625311056,0.13046569498755778,0.82906894100923956,4.0867093105899074E-2,757,1261,418,253,114,10,9,930,1403,340,79,36,26,8,0,0,0,0,0,2822,0]
[null,"Q45","RTR","SOUTH TEES HOSPITALS NHS FOUNDATION TRUST",489,9067,0.55279503105590067,0.25465838509316768,0.85655737704918034,4.0983606557377046E-2,124,143,90,72,51,3,6,229,189,47,15,5,3,1,0,0,0,0,0,489,0]
[null,"Q45","RVW","NORTH TEES AND HARTLEPOOL NHS FOUNDATION TRUST",364,5410,0.60439560439560436,0.18681318681318682,0.73626373626373631,0.13186813186813187,87,133,61,36,32,15,0,116,152,38,23,25,10,0,0,0,0,0,0,364,0]
[null,"Q45","RXP","COUNTY DURHAM AND DARLINGTON NHS FOUNDATION TRUST",19,7992,0.84210526315789469,0.10526315789473684,0.78947368421052633,5.2631578947368418E-2,7,9,1,2,0,0,0,7,8,3,1,0,0,0,0,0,0,0,0,19,0]
[null,"Q46","RW3","CENTRAL MANCHESTER UNIVERSITY HOSPITALS NHS FOUNDATION TRUST",50,12886,0.8,0.08,0.84,0.04,14,26,6,3,1,0,0,24,18,6,1,1,0,0,0,0,0,0,0,50,0]
[null,"Q46","RM2","UNIVERSITY HOSPITAL OF SOUTH MANCHESTER NHS FOUNDATION TRUST",183,6137,0.63934426229508201,0.13661202185792351,0.86885245901639341,2.7322404371584699E-2,39,78,40,19,6,1,0,86,73,18,4,1,1,0,0,0,0,0,0,183,0]
[null,"Q46","RMP","TAMESIDE HOSPITAL NHS FOUNDATION TRUST",264,2645,0.71595330739299612,0.11284046692607004,0.80620155038759689,3.4883720930232558E-2,75,109,42,20,9,2,7,73,135,39,6,3,2,6,0,0,3,0,0,261,0]
[null,"Q46","RY2","BRIDGEWATER COMMUNITY HEALTHCARE NHS FOUNDATION TRUST",75,3215,0.46666666666666667,0.37333333333333335,0.76,0.17333333333333334,9,26,12,14,14,0,0,30,27,5,6,7,0,0,0,0,0,0,0,75,0]
[null,"Q46","RWJ","STOCKPORT NHS FOUNDATION TRUST",675,5861,0.5544554455445545,0.17656765676567657,0.71287128712871284,7.0957095709570955E-2,107,229,158,60,47,5,69,169,263,122,21,22,9,69,0,0,64,0,0,611,0]
[null,"Q46","RBV","THE CHRISTIE NHS FOUNDATION TRUST",959,2564,0.71832460732984293,0.12356020942408377,0.96443514644351469,1.1506276150627616E-2,348,338,141,73,45,10,4,745,177,20,6,5,3,3,0,0,0,0,0,959,0]
[null,"Q46","RX7","NORTH WEST AMBULANCE SERVICE NHS TRUST",151,5047,0.64666666666666661,0.16666666666666666,0.86092715231788075,3.9735099337748346E-2,41,56,27,18,7,1,1,83,47,13,4,2,2,0,0,0,1,0,0,150,0]
[null,"Q46","RRF","WRIGHTINGTON, WIGAN AND LEIGH NHS FOUNDATION TRUST",330,4951,0.68181818181818177,6.9696969696969702E-2,0.79090909090909089,3.3333333333333333E-2,72,153,81,14,9,1,0,101,160,54,7,4,4,0,0,0,8,0,0,322,0]
[null,"Q46","RXV","GREATER MANCHESTER WEST MENTAL HEALTH NHS FOUNDATION TRUST",974,2907,0.61163032191069577,0.22222222222222221,0.69875776397515532,9.9378881987577633E-2,216,373,153,137,77,7,11,225,450,176,64,32,19,8,0,0,0,0,0,974,0]
[null,"Q46","RW6","PENNINE ACUTE HOSPITALS NHS TRUST",642,9203,0.59404388714733547,0.22100313479623823,0.70781249999999996,8.1250000000000003E-2,107,272,114,98,43,4,4,140,313,124,39,13,11,2,0,0,13,0,0,629,0]
[null,"Q46","RT2","PENNINE CARE NHS FOUNDATION TRUST",258,5977,0.65891472868217049,0.15503875968992248,0.79844961240310075,3.875968992248062E-2,74,96,46,20,20,2,0,73,133,39,6,4,3,0,0,0,0,0,0,258,0]
[null,"Q46","RM3","SALFORD ROYAL NHS FOUNDATION TRUST",80,7053,0.82051282051282048,2.564102564102564E-2,0.95,0,37,27,7,2,0,5,2,58,18,4,0,0,0,0,0,0,0,0,0,80,0]
[null,"Q46","RMC","BOLTON NHS FOUNDATION TRUST",1536,5360,0.57710125744540042,0.19589675711449372,0.73847167325428198,7.180500658761528E-2,259,613,331,204,92,12,25,377,744,270,89,20,18,18,0,0,0,0,0,1536,0]
[null,"Q46","TAE","MANCHESTER MENTAL HEALTH AND SOCIAL CARE TRUST",109,1676,0.50458715596330272,0.32110091743119268,0.55045871559633031,0.19266055045871561,18,37,17,22,13,2,0,19,41,23,15,6,5,0,0,0,0,0,0,109,0]
[null,"Q47","RXL","BLACKPOOL TEACHING HOSPITALS NHS FOUNDATION TRUST",1847,6648,0.66043956043956042,0.14505494505494507,0.76096491228070173,5.0438596491228067E-2,333,869,345,181,83,9,27,405,983,321,66,26,23,23,0,0,0,0,0,1847,0]
[null,"Q47","RW5","LANCASHIRE CARE NHS FOUNDATION TRUST",9,6711,0.44444444444444442,0.33333333333333331,0.66666666666666663,0.1111111111111111,1,3,2,1,2,0,0,0,6,2,1,0,0,0,0,0,0,0,0,9,0]
[null,"Q47","RXN","LANCASHIRE TEACHING HOSPITALS NHS FOUNDATION TRUST",646,7596,0.72230889235569418,0.11076443057722309,0.84161490683229812,3.8819875776397512E-2,143,320,106,52,19,1,5,207,335,70,21,4,7,2,0,0,0,0,0,646,0]
[null,"Q47","RXR","EAST LANCASHIRE HOSPITALS NHS TRUST",2032,7855,0.68041749502982107,0.13618290258449303,0.74826216484607744,7.1996027805362461E-2,444,925,354,176,98,15,20,531,976,336,106,39,26,18,0,0,0,0,0,2032,0]
[null,"Q47","RJX","CALDERSTONES PARTNERSHIP NHS FOUNDATION TRUST",229,1499,0.49696969696969695,0.30909090909090908,0.47120418848167539,0.3193717277486911,46,36,16,17,34,16,64,40,50,28,27,34,12,38,0,204,0,0,0,25,0]
[null,"Q48","REP","LIVERPOOL WOMEN'S NHS FOUNDATION TRUST",159,1547,0.81132075471698117,6.9182389937106917E-2,0.98113207547169812,1.2578616352201259E-2,62,67,18,5,6,1,0,93,63,0,0,2,1,0,0,0,126,0,0,33,0]
[null,"Q48","RBQ","LIVERPOOL HEART AND CHEST HOSPITAL NHS FOUNDATION TRUST",340,1468,0.74705882352941178,0.11470588235294117,0.97935103244837762,2.9498525073746312E-3,118,136,44,21,18,3,0,265,67,6,0,1,0,1,0,0,0,0,0,340,0]
[null,"Q48","RW4","MERSEY CARE NHS TRUST",701,3739,0.56509298998569379,0.22746781115879827,0.6790830945558739,0.11031518624641834,136,259,139,93,66,6,2,152,322,138,50,27,9,3,0,0,168,0,0,533,0]
[null,"Q48","RBS","ALDER HEY CHILDREN'S NHS FOUNDATION TRUST",242,3035,0.53526970954356845,0.2074688796680498,0.87551867219917012,3.3195020746887967E-2,44,85,61,31,19,1,1,123,88,21,3,5,1,1,0,0,0,0,0,242,0]
[null,"Q48","RET","THE WALTON CENTRE NHS FOUNDATION TRUST",77,1291,0.80519480519480524,6.4935064935064929E-2,0.98701298701298701,1.2987012987012988E-2,40,22,10,2,3,0,0,61,15,0,0,1,0,0,0,0,0,0,0,77,0]
[null,"Q48","RY1","LIVERPOOL COMMUNITY HEALTH NHS TRUST",446,2999,0.64125560538116588,0.14573991031390135,0.79372197309417036,4.9327354260089683E-2,90,196,89,44,21,6,0,128,226,69,17,5,1,0,0,0,446,0,0,0,0]
[null,"Q48","REM","AINTREE UNIVERSITY HOSPITAL NHS FOUNDATION TRUST",1066,4858,0.6641438032166509,0.15610217596972564,0.80642115203021714,6.8932955618508027E-2,275,427,182,89,76,8,9,346,508,123,40,33,9,7,0,0,270,0,0,796,0]
[null,"Q48","RBN","ST HELENS AND KNOWSLEY HOSPITALS NHS TRUST",413,5043,0.720873786407767,9.4660194174757281E-2,0.82524271844660191,2.9126213592233011E-2,139,158,56,22,17,20,1,191,149,35,5,7,25,1,0,0,101,0,0,312,0]
[null,"Q48","RQ6","ROYAL LIVERPOOL AND BROADGREEN UNIVERSITY HOSPITALS NHS TRUST",160,6461,0.68125000000000002,0.16250000000000001,0.79374999999999996,7.4999999999999997E-2,46,63,23,16,10,2,0,68,59,17,9,3,4,0,0,0,0,0,0,160,0]
[null,"Q48","RVY","SOUTHPORT AND ORMSKIRK HOSPITAL NHS TRUST",70,3541,0.3,0.41428571428571431,0.51428571428571423,0.17142857142857143,6,15,19,18,11,1,0,7,29,22,7,5,0,0,0,0,0,0,0,70,0]
[null,"Q49","RR7","GATESHEAD HEALTH NHS FOUNDATION TRUST",193,3657,0.63541666666666663,0.203125,0.81865284974093266,6.2176165803108807E-2,63,59,29,16,23,2,1,93,65,18,6,6,5,0,0,0,193,0,0,0,0]
[null,"Q49","RTD","THE NEWCASTLE UPON TYNE HOSPITALS NHS FOUNDATION TRUST",1556,13581,0.7863577863577863,8.1081081081081086E-2,0.94922879177377895,1.2853470437017995E-2,478,744,193,81,45,13,2,884,593,50,16,4,9,0,0,0,0,0,0,1556,0]
[null,"Q49","RTF","NORTHUMBRIA HEALTHCARE NHS FOUNDATION TRUST",479,8588,0.8152866242038217,4.4585987261146494E-2,0.84696016771488469,2.5157232704402517E-2,140,244,65,14,7,1,8,191,213,54,7,5,7,2,0,0,0,0,1,478,0]
[null,"Q49","RTX","UNIVERSITY HOSPITALS OF MORECAMBE BAY NHS FOUNDATION TRUST",67,5185,0.61194029850746268,0.2537313432835821,0.64179104477611937,0.2537313432835821,11,30,9,9,8,0,0,18,25,7,10,7,0,0,0,0,0,0,0,67,0]
[null,"Q49","RNN","CUMBRIA PARTNERSHIP NHS FOUNDATION TRUST",190,3874,0.77894736842105261,0.1,0.79473684210526319,4.2105263157894736E-2,62,86,19,12,7,4,0,69,82,28,5,3,3,0,0,0,190,0,0,0,0]
[null,"Q49","RE9","SOUTH TYNESIDE NHS FOUNDATION TRUST",1219,4389,0.64068908941755542,0.14109926168990977,0.68334700574241181,0.11156685808039377,248,533,245,101,71,21,0,262,571,217,83,53,33,0,0,0,0,0,0,1219,0]
[null,"Q49","RX4","NORTHUMBERLAND, TYNE AND WEAR NHS FOUNDATION TRUST",1927,6031,0.65594187856772179,0.14997405293201868,0.74104826154644521,7.0576024909185256E-2,455,809,339,164,125,35,0,508,920,288,81,55,75,0,0,0,101,0,0,1826,0]
[null,"Q49","RNL","NORTH CUMBRIA UNIVERSITY HOSPITALS NHS TRUST",6,3953,0.5,0.33333333333333331,0.83333333333333337,0.16666666666666666,0,3,1,2,0,0,0,1,4,0,1,0,0,0,0,0,0,0,0,6,0]
[null,"Q49","RX6","NORTH EAST AMBULANCE SERVICE NHS FOUNDATION TRUST",82,2313,0.36585365853658536,0.52439024390243905,0.73170731707317072,0.13414634146341464,6,24,9,18,25,0,0,34,26,11,6,5,0,0,0,0,0,0,0,82,0]
[null,"Q49","RLN","CITY HOSPITALS SUNDERLAND NHS FOUNDATION TRUST",787,5271,0.70153061224489799,0.1441326530612245,0.79288437102922493,8.8945362134688691E-2,193,357,117,75,38,4,3,227,397,90,53,17,3,0,0,0,0,0,0,787,0]
[null,"Q50","RWA","HULL AND EAST YORKSHIRE HOSPITALS NHS TRUST",214,7892,0.44859813084112149,0.34112149532710279,0.60747663551401865,0.14485981308411214,23,73,45,46,27,0,0,32,98,53,22,9,0,0,0,0,0,0,0,214,0]
[null,"Q50","RCD","HARROGATE AND DISTRICT NHS FOUNDATION TRUST",660,3558,0.69696969696969702,0.12727272727272726,0.8666666666666667,3.3333333333333333E-2,185,275,115,59,25,1,0,279,293,59,16,6,7,0,0,0,0,0,0,660,0]
[null,"Q50","RJL","NORTHERN LINCOLNSHIRE AND GOOLE NHS FOUNDATION TRUST",57,6095,0.82456140350877194,8.771929824561403E-2,0.94736842105263153,1.7543859649122806E-2,22,25,4,5,0,1,0,25,29,2,1,0,0,0,0,0,57,0,0,0,0]
[null,"Q50","RV9","HUMBER NHS FOUNDATION TRUST",429,2773,0.54694835680751175,0.25352112676056338,0.71662763466042156,8.6651053864168617E-2,75,158,82,52,56,3,3,105,201,73,21,16,11,2,0,0,0,289,0,140,0]
[null,"Q50","RCB","YORK TEACHING HOSPITAL NHS FOUNDATION TRUST",407,8707,0.7048346055979644,0.12977099236641221,0.78518518518518521,7.160493827160494E-2,107,170,63,36,15,2,14,122,196,54,16,13,4,2,0,0,0,0,0,407,0]
[null,"Q51","TAH","SHEFFIELD HEALTH & SOCIAL CARE NHS FOUNDATION TRUST",763,2817,0.65923984272608127,0.14678899082568808,0.7536041939711664,6.6841415465268672E-2,152,351,138,63,49,10,0,154,421,123,35,16,14,0,0,0,7,0,0,756,0]
[null,"Q51","RHQ","SHEFFIELD TEACHING HOSPITALS NHS FOUNDATION TRUST",1995,15625,0.73810741687979542,9.6163682864450123E-2,0.88821752265861031,2.4169184290030211E-2,542,901,304,124,64,20,40,924,840,157,29,19,17,9,0,0,791,0,0,1204,0]
[null,"Q51","RFF","BARNSLEY HOSPITAL NHS FOUNDATION TRUST",696,2964,0.63173216885007277,0.14556040756914118,0.75652173913043474,6.2318840579710148E-2,128,306,143,77,23,10,9,173,349,114,36,7,11,6,0,0,0,0,0,696,0]
[null,"Q51","RP5","DONCASTER AND BASSETLAW HOSPITALS NHS FOUNDATION TRUST",89,6686,0.90909090909090906,2.2727272727272728E-2,0.898876404494382,1.1235955056179775E-2,47,33,6,2,0,0,1,42,38,7,1,0,1,0,0,0,0,0,0,89,0]
[null,"Q51","RXE","ROTHERHAM DONCASTER AND SOUTH HUMBER NHS FOUNDATION TRUST",488,3783,0.68442622950819676,0.1598360655737705,0.79303278688524592,6.5573770491803282E-2,146,188,73,39,39,3,0,154,233,61,9,23,8,0,0,0,0,255,0,233,0]
[null,"Q51","RFR","THE ROTHERHAM NHS FOUNDATION TRUST",88,4303,0.63636363636363635,0.29545454545454547,0.64772727272727271,0.14772727272727273,27,29,6,11,15,0,0,23,34,16,10,3,2,0,0,88,0,0,0,0,0]
[null,"Q51","RCU","SHEFFIELD CHILDREN'S NHS FOUNDATION TRUST",782,2966,0.69191270860077025,0.110397946084724,0.90664961636828645,1.9181585677749361E-2,208,331,145,82,4,9,3,455,254,50,8,7,8,0,0,0,19,0,0,759,4]
[null,"Q52","RY6","LEEDS COMMUNITY HEALTHCARE NHS TRUST",536,2943,0.47574626865671643,0.31343283582089554,0.7649253731343284,5.7835820895522388E-2,53,202,109,102,66,4,0,132,278,89,17,14,6,0,0,0,0,16,0,520,0]
[null,"Q52","RR8","LEEDS TEACHING HOSPITALS NHS TRUST",1514,15440,0.68229854689564073,0.1690885072655218,0.84478203434610299,5.746367239101717E-2,407,626,221,144,112,4,0,588,691,134,55,32,14,0,0,0,0,0,0,1514,0]
[null,"Q52","RX8","YORKSHIRE AMBULANCE SERVICE NHS TRUST",297,4607,0.47796610169491527,0.32203389830508472,0.81481481481481477,6.3973063973063973E-2,58,83,58,44,51,1,2,118,124,31,7,12,5,0,0,0,44,0,0,253,0]
[null,"Q52","RXF","MID YORKSHIRE HOSPITALS NHS TRUST",1979,7875,0.4041343669250646,0.36434108527131781,0.51962809917355368,0.20712809917355371,174,608,437,412,293,11,44,241,765,512,296,105,17,43,0,0,0,0,0,1979,0]
[null,"Q52","RXG","SOUTH WEST YORKSHIRE PARTNERSHIP NHS FOUNDATION TRUST",1429,4837,0.56500351370344348,0.2073085031623331,0.6936050597329585,8.0112438510189746E-2,220,584,308,182,113,16,6,260,727,283,82,32,39,6,0,0,93,0,0,1336,0]
[null,"Q52","RGD","LEEDS AND YORK PARTNERSHIP NHS FOUNDATION TRUST",505,3258,0.52882703777335982,0.25844930417495032,0.65079365079365081,0.11507936507936507,69,197,103,66,64,4,2,87,241,106,36,22,12,1,0,0,0,0,0,505,0]
[null,"Q52","TAD","BRADFORD DISTRICT CARE NHS FOUNDATION TRUST",67,2856,0.73134328358208955,0.19402985074626866,0.71641791044776115,0.13432835820895522,22,27,5,8,5,0,0,15,33,10,6,3,0,0,0,0,1,0,0,66,0]
[null,"Q52","RAE","BRADFORD TEACHING HOSPITALS NHS FOUNDATION TRUST",456,5676,0.592255125284738,0.20045558086560364,0.73015873015873012,9.9773242630385492E-2,80,180,83,54,34,8,17,106,216,70,34,10,5,15,0,0,0,0,0,456,0]
[null,"Q52","RWY","CALDERDALE AND HUDDERSFIELD NHS FOUNDATION TRUST",1743,5944,0.53629032258064513,0.21428571428571427,0.77848101265822789,6.3291139240506333E-2,261,670,423,235,137,10,7,458,895,252,84,26,23,5,0,0,0,0,0,1743,0]
[null,"Q52","RCF","AIREDALE NHS FOUNDATION TRUST",432,2664,0.69605568445475641,0.14849187935034802,0.84222737819025517,6.2645011600928072E-2,107,193,64,39,25,3,1,150,213,38,18,9,3,1,0,0,432,0,0,0,0]
[null,"Q53","R1A","WORCESTERSHIRE HEALTH AND CARE NHS TRUST",207,3823,0.56000000000000005,0.24,0.7439613526570048,8.2125603864734303E-2,41,71,38,31,17,2,7,62,92,33,11,6,3,0,0,0,0,0,0,207,0]
[null,"Q53","RYG","COVENTRY AND WARWICKSHIRE PARTNERSHIP NHS TRUST",783,3922,0.41875825627476881,0.37648612945838839,0.56153846153846154,0.21153846153846154,93,224,151,149,136,4,26,101,337,173,90,75,4,3,0,0,0,0,0,783,0]
[null,"Q53","RLQ","WYE VALLEY NHS TRUST",584,2970,0.56603773584905659,0.22298456260720412,0.69125214408233271,9.4339622641509441E-2,97,233,115,83,47,8,1,157,246,115,37,18,10,1,0,0,234,0,0,350,0]
[null,"Q53","RJC","SOUTH WARWICKSHIRE NHS FOUNDATION TRUST",599,4170,0.78964941569282132,0.16026711185308848,0.86310517529215358,5.1752921535893157E-2,266,207,18,59,37,12,0,337,180,42,22,9,9,0,0,0,0,0,0,599,0]
[null,"Q53","RKB","UNIVERSITY HOSPITALS COVENTRY AND WARWICKSHIRE NHS TRUST",1089,7151,0.83562901744719931,6.7952249770431586E-2,0.91276400367309463,2.5711662075298437E-2,388,522,96,50,24,9,0,558,436,50,20,8,17,0,0,0,815,0,0,274,0]
[null,"Q53","RWP","WORCESTERSHIRE ACUTE HOSPITALS NHS TRUST",199,5942,0.51269035532994922,0.2233502538071066,0.73232323232323238,0.11616161616161616,35,66,47,24,20,5,2,48,97,29,15,8,1,1,0,0,41,0,0,158,0]
[null,"Q53","RLT","GEORGE ELIOT HOSPITAL NHS TRUST",306,2242,0.66013071895424835,0.15032679738562091,0.74836601307189543,6.8627450980392163E-2,60,142,56,33,13,2,0,76,153,50,21,0,6,0,0,0,0,0,0,306,0]
[null,"Q54","RXT","BIRMINGHAM AND SOLIHULL MENTAL HEALTH NHS FOUNDATION TRUST",129,4254,0.4573643410852713,0.37209302325581395,0.65116279069767447,0.16279069767441862,27,32,22,26,22,0,0,36,48,20,16,5,4,0,0,0,0,0,0,129,0]
[null,"Q54","RYK","DUDLEY AND WALSALL MENTAL HEALTH PARTNERSHIP NHS TRUST",200,1013,0.67,0.155,0.78500000000000003,7.0000000000000007E-2,53,81,32,21,10,3,0,59,98,27,7,7,2,0,0,0,0,0,0,200,0]
[null,"Q54","RYA","WEST MIDLANDS AMBULANCE SERVICE NHS FOUNDATION TRUST",73,4422,0.86301369863013699,5.4794520547945202E-2,0.93150684931506844,0,31,32,4,2,2,2,0,46,22,5,0,0,0,0,0,0,57,0,0,16,0]
[null,"Q54","RRK","UNIVERSITY HOSPITALS BIRMINGHAM NHS FOUNDATION TRUST",913,8738,0.79823594266813669,7.0562293274531424E-2,0.93949394939493946,1.1001100110011002E-2,343,381,112,46,18,7,6,541,313,40,5,5,5,4,0,0,0,0,0,913,0]
[null,"Q54","RNA","THE DUDLEY GROUP NHS FOUNDATION TRUST",193,4769,0.84974093264248707,5.181347150259067E-2,0.6424870466321243,0.24870466321243523,77,87,19,3,7,0,0,56,68,21,25,23,0,0,0,0,0,0,0,193,0]
[null,"Q54","RLU","BIRMINGHAM WOMEN'S NHS FOUNDATION TRUST",130,1748,0.73643410852713176,0.16279069767441862,0.85384615384615381,6.1538461538461542E-2,29,66,12,16,5,1,1,57,54,11,6,2,0,0,0,0,130,0,0,0,0]
[null,"Q54","RR1","HEART OF ENGLAND NHS FOUNDATION TRUST",477,10383,0.50104821802935007,0.27253668763102723,0.60924369747899154,0.15966386554621848,60,179,102,86,44,6,0,84,206,104,52,24,6,1,0,0,170,0,0,307,0]
[null,"Q54","RRJ","THE ROYAL ORTHOPAEDIC HOSPITAL NHS FOUNDATION TRUST",67,984,0.68656716417910446,0.19402985074626866,0.88059701492537312,0,21,25,8,6,7,0,0,45,14,8,0,0,0,0,0,0,39,0,0,28,0]
[null,"Q54","RL4","THE ROYAL WOLVERHAMPTON NHS TRUST",540,7854,0.62407407407407411,0.1648148148148148,0.77222222222222225,8.3333333333333329E-2,112,225,112,59,30,2,0,160,257,74,35,10,4,0,0,0,0,0,0,540,0]
[null,"Q54","RXK","SANDWELL AND WEST BIRMINGHAM HOSPITALS NHS TRUST",948,7150,0.47613997879109227,0.29162248144220571,0.65258711721224916,0.10665258711721225,75,374,211,169,106,8,5,105,513,222,67,34,6,1,0,0,0,0,0,948,0]
[null,"Q54","TAJ","BLACK COUNTRY PARTNERSHIP NHS FOUNDATION TRUST",74,2003,0.5,0.20270270270270271,0.63513513513513509,9.45945945945946E-2,8,29,20,8,7,2,0,13,34,19,5,2,1,0,0,0,0,0,0,74,0]
[null,"Q54","RBK","WALSALL HEALTHCARE NHS TRUST",1046,4393,0.51625239005736134,0.2294455066921606,0.5822179732313576,0.17590822179732313,150,390,245,135,105,21,0,170,439,240,113,71,13,0,0,0,373,0,0,673,0]
[null,"Q54","RQ3","BIRMINGHAM CHILDREN'S HOSPITAL NHS FOUNDATION TRUST",124,3688,0.7338709677419355,0.11290322580645161,0.9838709677419355,0,52,39,16,8,6,3,0,97,25,1,0,0,1,0,0,0,6,0,0,118,0]
[null,"Q54","RYW","BIRMINGHAM COMMUNITY HEALTHCARE NHS TRUST",104,5001,0.6310679611650486,0.13592233009708737,0.85576923076923073,3.8461538461538464E-2,21,44,24,10,4,0,1,30,59,11,2,2,0,0,0,0,0,0,0,104,0]
[null,"Q55","RX9","EAST MIDLANDS AMBULANCE SERVICE NHS TRUST",252,2910,0.46774193548387094,0.32661290322580644,0.748,6.8000000000000005E-2,38,78,51,45,36,0,4,79,108,45,12,5,1,2,0,0,4,0,0,248,0]
[null,"Q55","RK5","SHERWOOD FOREST HOSPITALS NHS FOUNDATION TRUST",385,4529,0.52105263157894732,0.21578947368421053,0.70744680851063835,0.11170212765957446,68,130,93,45,37,7,5,99,167,64,25,17,4,9,0,0,181,0,0,204,0]
[null,"Q55","RY8","DERBYSHIRE COMMUNITY HEALTH SERVICES NHS FOUNDATION TRUST",1300,4094,0.71130030959752322,0.11687306501547988,0.89310611928737416,1.7041053446940357E-2,347,572,212,106,45,10,8,556,597,107,9,13,9,9,0,0,0,0,0,1300,0]
[null,"Q55","RX1","NOTTINGHAM UNIVERSITY HOSPITALS NHS TRUST",3952,12546,0.70680359435173301,0.10808729139922978,0.8815553850089537,2.9675108723458684E-2,927,1826,702,298,123,19,57,1476,1970,323,89,27,24,43,0,0,0,0,0,3952,0]
[null,"Q55","RXM","DERBYSHIRE HEALTHCARE NHS FOUNDATION TRUST",288,2448,0.52961672473867594,0.31010452961672474,0.65156794425087106,0.17073170731707318,68,84,44,51,38,2,1,64,123,45,33,16,6,1,0,0,24,0,0,264,0]
[null,"Q55","RTG","DERBY TEACHING HOSPITALS NHS FOUNDATION TRUST",2870,8058,0.69198606271777008,0.11045296167247387,0.88153310104529614,2.3693379790940768E-2,753,1233,538,218,99,29,0,1265,1265,245,53,15,27,0,0,0,0,0,0,2870,0]
[null,"Q55","RFS","CHESTERFIELD ROYAL HOSPITAL NHS FOUNDATION TRUST",1079,3759,0.65338276181649679,0.12974976830398516,0.77571825764596847,5.0973123262279887E-2,254,451,218,101,39,16,0,322,515,166,43,12,21,0,0,0,0,0,0,1079,0]
[null,"Q55","RHA","NOTTINGHAMSHIRE HEALTHCARE NHS FOUNDATION TRUST",542,8849,0.67796610169491522,0.15630885122410546,0.77222222222222225,8.1481481481481488E-2,135,225,86,48,35,2,11,147,270,71,33,11,8,2,0,0,0,0,0,542,0]
[null,"Q56","RCX","THE QUEEN ELIZABETH HOSPITAL, KING'S LYNN, NHS FOUNDATION TRUST",485,3020,0.55876288659793816,0.26391752577319588,0.69484536082474224,0.14845360824742268,88,183,79,122,6,7,0,122,215,68,44,28,8,0,0,0,73,0,0,412,0]
[null,"Q56","RGM","PAPWORTH HOSPITAL NHS FOUNDATION TRUST",24,1889,0.83333333333333337,8.3333333333333329E-2,1,0,10,10,2,2,0,0,0,21,3,0,0,0,0,0,0,0,0,0,0,24,0]
[null,"Q56","RGN","PETERBOROUGH AND STAMFORD HOSPITALS NHS FOUNDATION TRUST",1001,3958,0.63763763763763759,0.15215215215215216,0.77700000000000002,6.7000000000000004E-2,194,443,205,97,55,5,2,280,497,149,43,24,7,1,0,0,134,0,0,867,0]
[null,"Q56","RGP","JAMES PAGET UNIVERSITY HOSPITALS NHS FOUNDATION TRUST",274,3028,0.71372549019607845,0.10588235294117647,0.83333333333333337,4.2635658914728682E-2,62,120,44,18,9,2,19,79,136,32,6,5,0,16,0,0,114,0,0,160,0]
[null,"Q56","RMY","NORFOLK AND SUFFOLK NHS FOUNDATION TRUST",748,3814,0.34396671289875175,0.44244105409153955,0.4859437751004016,0.28915662650602408,47,201,152,165,154,2,27,74,289,158,134,82,10,1,0,0,0,0,4,744,0]
[null,"Q56","RY3","NORFOLK COMMUNITY HEALTH AND CARE NHS TRUST",507,2670,0.42331288343558282,0.30061349693251532,0.69734151329243355,0.10020449897750511,47,160,130,89,58,5,18,90,251,84,30,19,15,18,0,0,0,0,0,507,0]
[null,"Q56","RYV","CAMBRIDGESHIRE COMMUNITY SERVICES NHS TRUST",530,3607,0.65660377358490563,0.13396226415094339,0.84905660377358494,3.2075471698113207E-2,142,206,100,47,24,11,0,229,221,56,9,8,7,0,0,0,0,0,0,530,0]
[null,"Q56","RGQ","IPSWICH HOSPITAL NHS TRUST",360,3768,0.65,0.14166666666666666,0.83333333333333337,3.0555555555555555E-2,67,167,72,37,14,3,0,114,186,46,6,5,3,0,0,0,43,0,0,317,0]
[null,"Q56","RT1","CAMBRIDGESHIRE AND PETERBOROUGH NHS FOUNDATION TRUST",1883,2308,0.50132766861391398,0.25544344131704727,0.60647902283590016,0.14126394052044611,254,690,413,302,179,45,0,286,856,396,185,81,79,0,0,0,0,0,0,1883,0]
[null,"Q56","RQQ","HINCHINGBROOKE HEALTH CARE NHS TRUST",121,1671,0.61157024793388426,0.24793388429752067,0.74380165289256195,0.10743801652892562,34,40,16,16,14,1,0,47,43,17,10,3,1,0,0,0,0,0,0,121,0]
[null,"Q56","RM1","NORFOLK AND NORWICH UNIVERSITY HOSPITALS NHS FOUNDATION TRUST",77,7001,0.54545454545454541,0.25974025974025972,0.72727272727272729,0.12987012987012986,19,23,15,12,8,0,0,36,20,11,5,5,0,0,0,0,0,0,0,77,0]
[null,"Q56","RYC","EAST OF ENGLAND AMBULANCE SERVICE NHS TRUST",412,4237,0.29339853300733498,0.56723716381418088,0.68641975308641978,0.14814814814814814,36,84,54,77,155,3,3,127,151,58,35,25,9,7,0,0,0,412,0,0,0]
[null,"Q56","RGR","WEST SUFFOLK NHS FOUNDATION TRUST",835,3028,0.82216808769792937,5.4811205846528627E-2,0.92650602409638549,1.2048192771084338E-2,324,351,96,28,17,5,14,409,360,50,6,4,1,5,0,0,0,0,0,835,0]
[null,"Q56","RGT","CAMBRIDGE UNIVERSITY HOSPITALS NHS FOUNDATION TRUST",3589,9322,0.71073903002309469,0.12673210161662818,0.90557320242564254,2.5989026855327751E-2,796,1666,556,319,120,7,125,1562,1574,227,68,22,10,126,0,0,0,0,0,3589,0]
[null,"Q57","RAJ","SOUTHEND UNIVERSITY HOSPITAL NHS FOUNDATION TRUST",238,5065,0.45378151260504201,0.31512605042016806,0.76470588235294112,6.3025210084033612E-2,35,73,55,43,32,0,0,67,115,37,13,2,4,0,0,0,0,0,0,238,0]
[null,"Q57","RDE","COLCHESTER HOSPITAL UNIVERSITY NHS FOUNDATION TRUST",243,4219,0.4279835390946502,0.32921810699588477,0.5761316872427984,0.19341563786008231,26,78,57,44,36,2,0,44,96,53,32,15,3,0,0,0,4,0,0,239,0]
[null,"Q57","RQ8","MID ESSEX HOSPITAL SERVICES NHS TRUST",322,4314,0.59006211180124224,0.17391304347826086,0.81677018633540377,4.6583850931677016E-2,49,141,69,37,19,7,0,94,169,39,10,5,5,0,0,0,0,0,0,322,0]
[null,"Q57","RDD","BASILDON AND THURROCK UNIVERSITY HOSPITALS NHS FOUNDATION TRUST",266,4467,0.44360902255639095,0.31954887218045114,0.73684210526315785,0.10526315789473684,29,89,61,48,37,2,0,48,148,39,18,10,3,0,0,0,0,0,0,266,0]
[null,"Q57","RQW","THE PRINCESS ALEXANDRA HOSPITAL NHS TRUST",900,3102,0.5323660714285714,0.23325892857142858,0.7276785714285714,9.8214285714285712E-2,119,358,206,128,81,4,4,188,464,146,63,25,10,4,0,0,0,0,0,900,0]
[null,"Q57","RWN","SOUTH ESSEX PARTNERSHIP UNIVERSITY NHS FOUNDATION TRUST",1086,5832,0.77449168207024033,0.10073937153419593,0.83609576427255983,4.4198895027624308E-2,371,467,129,65,44,6,4,428,480,119,31,17,11,0,0,0,203,0,0,883,0]
[null,"Q57","RRD","NORTH ESSEX PARTNERSHIP UNIVERSITY NHS FOUNDATION TRUST",266,1901,0.45488721804511278,0.37593984962406013,0.59022556390977443,0.24060150375939848,47,74,40,41,59,5,0,55,102,42,27,37,3,0,0,0,0,0,0,266,0]
[null,"Q58","RWR","HERTFORDSHIRE PARTNERSHIP UNIVERSITY NHS FOUNDATION TRUST",400,2613,0.45945945945945948,0.32702702702702702,0.60256410256410253,0.16923076923076924,48,122,76,64,57,3,30,65,170,77,40,26,12,10,0,0,12,0,0,388,0]
[null,"Q58","RD8","MILTON KEYNES HOSPITAL NHS FOUNDATION TRUST",131,3120,0.63358778625954193,0.16793893129770993,0.72519083969465647,0.16030534351145037,43,40,23,8,14,3,0,45,50,13,12,9,2,0,0,0,0,0,0,131,0]
[null,"Q58","RNS","NORTHAMPTON GENERAL HOSPITAL NHS TRUST",245,4747,0.56147540983606559,0.21721311475409835,0.71836734693877546,0.11836734693877551,41,96,52,31,22,2,1,58,118,38,19,10,2,0,0,0,0,0,0,245,0]
[null,"Q58","RWG","WEST HERTFORDSHIRE HOSPITALS NHS TRUST",812,4258,0.49384236453201968,0.26724137931034481,0.57512315270935965,0.18349753694581281,125,276,179,132,85,15,0,140,327,177,113,36,19,0,0,0,200,0,0,612,0]
[null,"Q58","RNQ","KETTERING GENERAL HOSPITAL NHS FOUNDATION TRUST",489,3584,0.60164271047227924,0.22792607802874743,0.70431211498973301,0.12114989733059549,88,205,77,62,49,6,2,105,238,77,34,25,8,2,0,0,0,0,0,489,0]
[null,"Q58","RY4","HERTFORDSHIRE COMMUNITY NHS TRUST",565,2960,0.56814159292035393,0.18584070796460178,0.81769911504424775,4.247787610619469E-2,105,216,138,71,34,1,0,180,282,75,18,6,4,0,0,0,0,0,0,565,0]
[null,"Q58","RP1","NORTHAMPTONSHIRE HEALTHCARE NHS FOUNDATION TRUST",1223,3486,0.6428571428571429,0.16584564860426929,0.77283950617283947,5.51440329218107E-2,237,546,230,120,82,3,5,289,650,201,43,24,8,8,0,0,0,0,0,1223,0]
[null,"Q58","RC1","BEDFORD HOSPITAL NHS TRUST",994,2562,0.59523809523809523,0.20238095238095238,0.83333333333333337,4.7619047619047616E-2,21,29,17,8,9,0,910,32,38,9,3,1,1,910,0,0,0,994,0,0,0]
[null,"Q58","RC9","LUTON AND DUNSTABLE UNIVERSITY HOSPITAL NHS FOUNDATION TRUST",299,3824,0.65551839464882944,0.15384615384615385,0.80602006688963213,6.354515050167224E-2,68,128,55,30,16,2,0,94,147,38,11,8,1,0,0,0,0,0,0,299,0]
[null,"Q58","RWH","EAST AND NORTH HERTFORDSHIRE NHS TRUST",578,5146,0.49305555555555558,0.31770833333333331,0.67820069204152245,0.15397923875432526,96,188,105,92,91,4,2,159,233,89,53,36,8,0,0,0,8,0,0,570,0]
[null,"Q59","RY5","LINCOLNSHIRE COMMUNITY HEALTH SERVICES NHS TRUST",270,2424,0.68148148148148147,8.5185185185185183E-2,0.90370370370370368,2.2222222222222223E-2,78,106,61,16,7,2,0,122,122,18,6,0,2,0,0,0,0,0,0,270,0]
[null,"Q59","RT5","LEICESTERSHIRE PARTNERSHIP NHS TRUST",884,5473,0.61425339366515841,0.17986425339366516,0.74208144796380093,7.2398190045248875E-2,128,415,177,101,58,5,0,168,488,149,44,20,15,0,0,0,0,0,0,884,0]
[null,"Q59","RP7","LINCOLNSHIRE PARTNERSHIP NHS FOUNDATION TRUST",163,2147,0.73006134969325154,0.12269938650306748,0.78527607361963192,3.6809815950920248E-2,38,81,23,16,4,1,0,45,83,21,4,2,8,0,0,0,3,0,0,160,0]
[null,"Q59","RWE","UNIVERSITY HOSPITALS OF LEICESTER NHS TRUST",1368,12282,0.5494505494505495,0.22197802197802197,0.71397220190197508,0.10095098756400878,225,525,296,192,111,16,3,301,675,229,104,34,24,1,0,0,464,0,0,904,0]
[null,"Q59","RWD","UNITED LINCOLNSHIRE HOSPITALS NHS TRUST",2810,7519,0.43345195729537367,0.2412811387900356,0.4480427046263345,0.21779359430604983,205,1013,868,433,245,46,0,215,1044,886,418,194,53,0,0,0,2789,0,0,21,0]
[null,"Q60","RXW","SHREWSBURY AND TELFORD HOSPITAL NHS TRUST",454,5562,0.55205811138014527,0.2566585956416465,0.67777777777777781,0.15333333333333332,82,146,77,60,46,2,41,119,186,69,38,31,7,4,0,0,103,0,0,351,0]
[null,"Q60","RJE","UNIVERSITY HOSPITALS OF NORTH MIDLANDS NHS TRUST",1376,9987,0.57630813953488369,0.20639534883720931,0.80087209302325579,6.25E-2,227,566,290,184,100,9,0,408,694,181,61,25,7,0,0,0,0,0,0,1376,0]
[null,"Q60","RL1","THE ROBERT JONES AND AGNES HUNT ORTHOPAEDIC HOSPITAL NHS FOUNDATION TRUST",82,1310,0.73417721518987344,7.5949367088607597E-2,0.97560975609756095,0,29,29,14,2,4,1,3,71,9,1,0,0,1,0,0,0,0,0,0,82,0]
[null,"Q60","RLY","NORTH STAFFORDSHIRE COMBINED HEALTHCARE NHS TRUST",101,1392,0.49504950495049505,0.31683168316831684,0.69306930693069302,0.14851485148514851,11,39,17,18,14,2,0,17,53,15,9,6,1,0,0,0,0,7,0,94,0]
[null,"Q60","RRE","SOUTH STAFFORDSHIRE AND SHROPSHIRE HEALTHCARE NHS FOUNDATION TRUST",203,3345,0.48888888888888887,0.17777777777777778,0.55555555555555558,0.15555555555555556,8,14,11,1,7,4,158,8,17,9,1,6,4,158,0,0,203,0,0,0,0]
[null,"Q60","R1D","SHROPSHIRE COMMUNITY HEALTH NHS TRUST",86,1612,0.56976744186046513,0.19767441860465115,0.80232558139534882,5.8139534883720929E-2,20,29,19,11,6,1,0,34,35,10,4,1,2,0,0,0,0,0,0,86,0]
[null,"Q60","RJF","BURTON HOSPITALS NHS FOUNDATION TRUST",795,3183,0.64905660377358487,0.16226415094339622,0.77358490566037741,6.1635220125786164E-2,146,370,145,84,45,5,0,196,419,116,35,14,15,0,0,0,37,6,0,752,0]
[null,"Q60","R1E","STAFFORDSHIRE AND STOKE ON TRENT PARTNERSHIP NHS TRUST",1876,5814,0.51341201716738194,0.25804721030042921,0.7561629153269025,6.2165058949624867E-2,279,678,416,268,213,10,12,439,972,319,77,39,20,10,0,0,0,0,0,1876,0]
[null,"Q64","RTQ","2GETHER NHS FOUNDATION TRUST",339,1974,0.6224188790560472,0.18584070796460178,0.77286135693215341,7.6696165191740412E-2,75,136,64,42,21,1,0,109,153,45,16,10,6,0,0,0,0,0,0,339,0]
[null,"Q64","R1J","GLOUCESTERSHIRE CARE SERVICES NHS TRUST",532,2693,0.49436090225563911,0.25187969924812031,0.81132075471698117,3.5849056603773584E-2,78,185,125,85,49,10,0,168,262,75,12,7,6,2,0,0,93,0,0,439,0]
[null,"Q64","RN3","GREAT WESTERN HOSPITALS NHS FOUNDATION TRUST",174,5196,0.64942528735632188,0.18390804597701149,0.79885057471264365,6.8965517241379309E-2,44,69,28,21,11,1,0,55,84,23,10,2,0,0,0,0,0,0,0,174,0]
[null,"Q64","RTE","GLOUCESTERSHIRE HOSPITALS NHS FOUNDATION TRUST",90,7416,0.36666666666666664,0.43333333333333335,0.72413793103448276,9.1954022988505746E-2,14,19,18,19,20,0,0,13,50,16,5,3,0,3,0,0,0,0,0,90,0]
[null,"Q64","RD1","ROYAL UNITED HOSPITALS BATH NHS FOUNDATION TRUST",409,5018,0.71078431372549022,0.15686274509803921,0.84107579462102688,6.1124694376528114E-2,110,180,51,47,17,3,1,165,179,38,15,10,2,0,0,0,0,0,0,409,0]
[null,"Q64","RVN","AVON AND WILTSHIRE MENTAL HEALTH PARTNERSHIP NHS TRUST",586,3780,0.48293515358361777,0.33447098976109213,0.6774744027303754,0.12969283276450511,59,224,105,96,100,2,0,146,251,104,44,32,9,0,0,0,0,0,0,586,0]
[null,"Q64","RNZ","SALISBURY NHS FOUNDATION TRUST",314,3267,0.82484076433121023,6.6878980891719744E-2,0.92356687898089174,1.2738853503184714E-2,114,145,32,16,5,2,0,177,113,13,4,0,7,0,0,0,0,0,0,314,0]
[null,"Q65","RVJ","NORTH BRISTOL NHS TRUST",1929,8560,0.46359743040685225,0.30674518201284795,0.65535248041775462,0.13942558746736292,207,659,417,332,241,12,61,323,932,369,195,72,24,14,0,0,161,0,0,1768,0]
[null,"Q65","RA4","YEOVIL DISTRICT HOSPITAL NHS FOUNDATION TRUST",230,2015,0.74347826086956526,0.13043478260869565,0.88260869565217392,3.9130434782608699E-2,64,107,28,20,10,1,0,77,126,16,6,3,2,0,0,230,0,0,0,0,0]
[null,"Q65","RH5","SOMERSET PARTNERSHIP NHS FOUNDATION TRUST",324,3832,0.70496894409937894,0.15527950310559005,0.87267080745341619,3.7267080745341616E-2,74,153,43,37,13,2,2,124,157,26,10,2,3,2,0,0,0,0,0,324,0]
[null,"Q65","RBA","TAUNTON AND SOMERSET NHS FOUNDATION TRUST",491,4161,0.73319755600814662,7.9429735234215884E-2,0.93075356415478616,1.2219959266802444E-2,121,239,91,33,6,1,0,252,205,27,4,2,1,0,0,0,16,0,0,475,0]
[null,"Q65","RA3","WESTON AREA HEALTH NHS TRUST",141,1759,0.52142857142857146,0.26428571428571429,0.67142857142857137,0.17142857142857143,26,47,27,19,18,3,1,41,53,19,10,14,3,1,0,0,141,0,0,0,0]
[null,"Q65","RA7","UNIVERSITY HOSPITALS BRISTOL NHS FOUNDATION TRUST",430,8642,0.61826697892271665,0.17798594847775176,0.85780885780885785,3.7296037296037296E-2,81,183,81,44,32,6,3,167,201,43,13,3,2,1,0,0,430,0,0,0,0]
[null,"Q66","RJ8","CORNWALL PARTNERSHIP NHS FOUNDATION TRUST",371,1653,0.58760107816711593,0.24258760107816713,0.72776280323450138,0.11590296495956873,66,152,63,45,45,0,0,91,179,56,31,12,2,0,0,0,0,0,0,371,0]
[null,"Q66","RYF","SOUTH WESTERN AMBULANCE SERVICE NHS FOUNDATION TRUST",1409,4260,0.42969870875179339,0.35652797704447631,0.83572453371592537,5.2367288378766141E-2,173,426,288,251,246,10,15,599,566,150,46,27,6,15,0,0,0,0,0,1409,0]
[null,"Q66","REF","ROYAL CORNWALL HOSPITALS NHS TRUST",474,5101,0.24886877828054299,0.51357466063348411,0.47297297297297297,0.25225225225225223,22,88,105,118,109,0,32,48,162,118,84,28,4,30,0,0,18,0,0,456,0]
[null,"Q66","RBZ","NORTHERN DEVON HEALTHCARE NHS TRUST",983,4487,0.69653767820773926,0.11303462321792261,0.79633401221995925,4.684317718940937E-2,208,476,175,86,25,12,1,288,494,136,32,14,18,1,0,0,103,0,0,880,0]
[null,"Q66","RH8","ROYAL DEVON AND EXETER NHS FOUNDATION TRUST",58,6461,0.87931034482758619,1.7241379310344827E-2,0.96491228070175439,1.7543859649122806E-2,36,15,6,1,0,0,0,50,5,1,1,0,0,1,0,5,53,0,0,0,0]
[null,"Q66","RK9","PLYMOUTH HOSPITALS NHS TRUST",2060,6430,0.58398058252427187,0.19368932038834952,0.80388349514563107,4.4660194174757278E-2,277,926,448,299,100,10,0,544,1112,302,74,18,10,0,0,0,0,0,0,2060,0]
[null,"Q66","RWV","DEVON PARTNERSHIP NHS TRUST",125,2238,0.52800000000000002,0.26400000000000001,0.504,0.224,20,46,26,18,15,0,0,20,43,32,19,9,2,0,0,0,0,0,0,125,0]
[null,"Q66","R1G","TORBAY AND SOUTHERN DEVON HEALTH AND CARE NHS TRUST",184,2050,0.72826086956521741,7.0652173913043473E-2,0.83152173913043481,5.9782608695652176E-2,49,85,36,13,0,1,0,69,84,20,8,3,0,0,0,0,0,0,0,184,0]
[null,"Q66","RA9","SOUTH DEVON HEALTHCARE NHS FOUNDATION TRUST",559,4287,0.75985663082437271,9.3189964157706098E-2,0.89445438282647582,2.1466905187835419E-2,175,249,75,38,14,7,1,282,218,38,10,2,9,0,0,0,97,0,0,462,0]
[null,"Q67","RN7","DARTFORD AND GRAVESHAM NHS TRUST",250,2964,0.86290322580645162,4.4354838709677422E-2,0.95934959349593496,4.0650406504065045E-3,111,103,21,7,4,2,2,146,90,7,0,1,2,4,0,0,90,0,0,160,0]
[null,"Q67","RPA","MEDWAY NHS FOUNDATION TRUST",603,4179,0.51428571428571423,0.23529411764705882,0.68907563025210083,9.9159663865546213E-2,69,237,146,96,44,3,8,103,307,119,47,12,7,8,0,0,0,0,0,603,0]
[null,"Q67","RYY","KENT COMMUNITY HEALTH NHS FOUNDATION TRUST",788,5604,0.65989847715736039,0.1802030456852792,0.85152284263959388,3.4263959390862943E-2,217,303,123,80,62,3,0,304,367,81,14,13,9,0,0,0,0,0,788,0,0]
[null,"Q67","RXY","KENT AND MEDWAY NHS AND SOCIAL CARE PARTNERSHIP TRUST",881,3255,0.56077981651376152,0.26146788990825687,0.6403207331042382,0.12943871706758306,150,339,153,131,97,2,9,164,395,185,80,33,16,8,0,0,0,0,0,881,0]
[null,"Q67","RWF","MAIDSTONE AND TUNBRIDGE WELLS NHS TRUST",300,5675,0.57999999999999996,0.17,0.84333333333333338,2.3333333333333334E-2,58,116,70,30,21,5,0,114,139,37,3,4,3,0,0,0,0,0,0,300,0]
[null,"Q67","RVV","EAST KENT HOSPITALS UNIVERSITY NHS FOUNDATION TRUST",2050,7650,0.46819085487077533,0.29920477137176937,0.71819085487077539,8.6978131212723658E-2,222,720,459,378,224,9,38,414,1031,379,128,47,13,38,0,3,0,0,0,2047,0]
[null,"Q68","RPC","QUEEN VICTORIA HOSPITAL NHS FOUNDATION TRUST",200,974,0.755,0.11,0.98499999999999999,0.01,75,76,26,6,16,1,0,155,42,1,2,0,0,0,0,0,0,0,0,200,0]
[null,"Q68","RA2","ROYAL SURREY COUNTY HOSPITAL NHS FOUNDATION TRUST",608,3638,0.74290484140233726,0.1018363939899833,0.86490939044481052,4.118616144975288E-2,194,251,85,38,23,8,9,270,255,45,14,11,12,1,0,0,0,0,0,608,0]
[null,"Q68","RDR","SUSSEX COMMUNITY NHS TRUST",685,4274,0.74332344213649848,9.6439169139465875E-2,0.87001477104874447,2.5110782865583457E-2,162,339,91,45,20,17,11,240,349,57,10,7,14,8,0,0,590,0,0,95,0]
[null,"Q68","RYD","SOUTH EAST COAST AMBULANCE SERVICE NHS FOUNDATION TRUST",472,3538,0.38559322033898308,0.44915254237288138,0.85987261146496818,2.5477707006369428E-2,59,123,75,66,146,3,0,229,176,49,12,0,5,1,0,0,0,0,0,472,0]
[null,"Q68","RYR","WESTERN SUSSEX HOSPITALS NHS FOUNDATION TRUST",580,6702,0.64827586206896548,0.17758620689655172,0.78965517241379313,6.2068965517241378E-2,124,252,88,64,39,13,0,182,276,76,27,9,10,0,0,227,0,136,0,217,0]
[null,"Q68","RTP","SURREY AND SUSSEX HEALTHCARE NHS TRUST",533,3723,0.74038461538461542,0.1,0.875,3.5984848484848488E-2,156,229,79,31,21,4,13,229,233,42,13,6,5,5,0,0,0,0,0,533,0]
[null,"Q68","RTK","ASHFORD AND ST PETER'S HOSPITALS NHS FOUNDATION TRUST",619,3670,0.73355263157894735,0.14473684210526316,0.83521809369951538,5.0080775444264945E-2,185,261,72,60,28,2,11,232,285,67,22,9,4,0,0,0,289,0,0,330,0]
[null,"Q68","RX2","SUSSEX PARTNERSHIP NHS FOUNDATION TRUST",356,4309,0.5280898876404494,0.26685393258426965,0.6797752808988764,0.14887640449438203,50,138,69,53,42,4,0,64,178,57,33,20,4,0,0,14,0,0,0,342,0]
[null,"Q68","RXH","BRIGHTON AND SUSSEX UNIVERSITY HOSPITALS NHS TRUST",1339,7180,0.55115758028379391,0.18670649738610903,0.70873786407766992,9.1112770724421213E-2,260,478,338,167,83,13,0,352,597,249,89,33,19,0,0,0,0,0,0,1339,0]
[null,"Q68","RXX","SURREY AND BORDERS PARTNERSHIP NHS FOUNDATION TRUST",205,2478,0.71707317073170729,0.16097560975609757,0.76097560975609757,5.3658536585365853E-2,51,96,24,18,15,1,0,59,97,33,8,3,5,0,0,9,0,0,0,196,0]
[null,"Q68","RXC","EAST SUSSEX HEALTHCARE NHS TRUST",537,6557,0.53445065176908757,0.27932960893854747,0.72253258845437618,8.5661080074487903E-2,100,187,93,69,81,7,0,160,228,89,34,12,14,0,0,0,0,0,0,537,0]
[null,"Q68","RDU","FRIMLEY HEALTH NHS FOUNDATION TRUST",939,8564,0.65326086956521734,0.17282608695652174,0.78288770053475931,8.5561497326203204E-2,251,350,147,94,65,13,19,422,310,118,52,28,5,4,0,0,0,0,0,939,0]
[null,"Q69","RYE","SOUTH CENTRAL AMBULANCE SERVICE NHS FOUNDATION TRUST",333,2952,0.61773700305810397,0.18042813455657492,0.87461773700305812,3.3639143730886847E-2,79,123,65,34,25,1,6,164,122,30,6,5,0,6,0,0,0,0,0,333,0]
[null,"Q69","RNU","OXFORD HEALTH NHS FOUNDATION TRUST",989,5580,0.56386292834890961,0.2087227414330218,0.73150962512664641,7.598784194528875E-2,162,381,209,127,74,10,26,225,497,179,57,18,11,2,0,0,0,0,0,989,0]
[null,"Q69","RXQ","BUCKINGHAMSHIRE HEALTHCARE NHS TRUST",1216,5809,0.53749999999999998,0.23499999999999999,0.6652858326429163,0.10439105219552609,141,504,260,178,104,13,16,205,598,257,81,45,21,9,0,0,1096,0,0,120,0]
[null,"Q69","RHW","ROYAL BERKSHIRE NHS FOUNDATION TRUST",1053,5315,0.58030592734225617,0.2208413001912046,0.83254043767840147,3.5204567078972404E-2,202,405,198,144,87,10,7,315,560,129,26,11,10,2,0,0,0,0,0,1053,0]
[null,"Q69","RTH","OXFORD UNIVERSITY HOSPITALS NHS TRUST",2300,11304,0.61463844797178135,0.17857142857142858,0.86229652441706994,2.1557413110426749E-2,414,980,457,251,154,12,32,840,1120,247,36,13,17,27,0,0,0,0,0,2300,0]
[null,"Q69","RWX","BERKSHIRE HEALTHCARE NHS FOUNDATION TRUST",1573,4141,0.68802049967969248,0.14285714285714285,0.81037796284433061,4.5483664317745039E-2,368,706,261,152,71,3,12,436,829,208,46,25,17,12,0,0,0,0,0,1573,0]
[null,"Q70","RHU","PORTSMOUTH HOSPITALS NHS TRUST",668,6613,0.7380239520958084,0.11976047904191617,0.86377245508982037,2.6946107784431138E-2,189,304,94,49,31,1,0,274,303,67,13,5,6,0,0,0,0,0,0,668,0]
[null,"Q70","RW1","SOUTHERN HEALTH NHS FOUNDATION TRUST",224,7676,0.50672645739910316,0.29596412556053814,0.61085972850678738,0.12669683257918551,25,88,42,26,40,2,1,36,99,50,10,18,8,3,0,0,104,0,0,120,0]
[null,"Q70","R1F","ISLE OF WIGHT NHS TRUST",772,3031,0.48955613577023499,0.27545691906005221,0.63989637305699487,0.13471502590673576,61,314,171,140,71,9,6,113,381,164,68,36,10,0,0,0,0,0,0,772,0]
[null,"Q70","RBD","DORSET COUNTY HOSPITAL NHS FOUNDATION TRUST",268,2609,0.59328358208955223,0.17537313432835822,0.81343283582089554,3.7313432835820892E-2,59,100,60,33,14,2,0,91,127,38,9,1,2,0,0,268,0,0,0,0,0]
[null,"Q70","R1C","SOLENT NHS TRUST",693,3778,0.50793650793650791,0.28427128427128429,0.79797979797979801,6.6378066378066383E-2,109,243,143,118,79,1,0,197,356,89,32,14,5,0,0,0,0,0,0,693,0]
[null,"Q70","RDY","DORSET HEALTHCARE UNIVERSITY NHS FOUNDATION TRUST",248,5383,0.62903225806451613,0.27822580645161288,0.79591836734693877,6.1224489795918366E-2,52,104,9,43,26,14,0,62,133,15,12,3,20,3,0,0,0,3,0,245,0]
[null,"Q70","RN5","HAMPSHIRE HOSPITALS NHS FOUNDATION TRUST",410,5856,0.61951219512195121,0.1951219512195122,0.83333333333333337,4.6568627450980393E-2,71,183,73,44,36,3,0,145,195,39,14,5,10,2,0,0,410,0,0,0,0]
[null,"Q70","RD3","POOLE HOSPITAL NHS FOUNDATION TRUST",445,3681,0.72460496613995484,0.10158013544018059,0.8764044943820225,2.4719101123595506E-2,132,189,75,27,18,2,2,223,167,41,9,2,3,0,0,0,445,0,0,0,0]
[null,"Q70","RDZ","THE ROYAL BOURNEMOUTH AND CHRISTCHURCH HOSPITALS NHS FOUNDATION TRUST",573,4403,0.64572425828970337,0.13961605584642234,0.82373472949389182,3.3158813263525308E-2,92,278,119,66,14,4,0,163,309,74,18,1,8,0,0,0,0,0,0,573,0]
[null,"Q70","RHM","UNIVERSITY HOSPITAL SOUTHAMPTON NHS FOUNDATION TRUST",2954,9613,0.72487135506003431,0.10120068610634649,0.89639794168096054,2.2298456260720412E-2,721,1392,497,206,89,10,39,1228,1385,218,39,26,19,39,0,21,0,0,0,2933,0]
[null,"Q71","R1K","LONDON NORTH WEST HEALTHCARE NHS TRUST",1524,8788,0.61764705882352944,0.16176470588235295,0.6844563042028019,9.3395597064709804E-2,259,665,325,163,79,5,28,320,706,312,95,45,21,25,0,0,0,0,0,1524,0]
[null,"Q71","RAN","ROYAL NATIONAL ORTHOPAEDIC HOSPITAL NHS TRUST",99,1447,0.77083333333333337,0.14583333333333334,0.97979797979797978,1.0101010101010102E-2,41,33,7,9,5,1,3,73,24,1,1,0,0,0,0,0,0,0,0,99,0]
[null,"Q71","RRV","UNIVERSITY COLLEGE LONDON HOSPITALS NHS FOUNDATION TRUST",292,8345,0.67465753424657537,0.17123287671232876,0.90068493150684936,4.1095890410958902E-2,93,104,45,30,20,0,0,150,113,16,5,7,1,0,0,0,0,0,0,292,0]
[null,"Q71","RYX","CENTRAL LONDON COMMUNITY HEALTHCARE NHS TRUST",203,2924,0.51231527093596063,0.25123152709359609,0.66009852216748766,4.9261083743842367E-2,33,71,46,32,19,2,0,41,93,46,9,1,13,0,0,0,0,0,0,203,0]
[null,"Q71","RJ7","ST GEORGE'S UNIVERSITY HOSPITALS NHS FOUNDATION TRUST",816,8378,0.54779411764705888,0.24387254901960784,0.78921568627450978,6.25E-2,146,301,165,114,85,5,0,279,365,115,32,19,6,0,0,231,2,0,0,583,0]
[null,"Q71","RQX","HOMERTON UNIVERSITY HOSPITAL NHS FOUNDATION TRUST",1020,3684,0.77788844621513942,7.5697211155378488E-2,0.83118172790466738,4.4687189672293945E-2,331,450,142,47,29,5,16,306,531,114,30,15,11,13,0,0,0,0,0,1020,0]
[null,"Q71","RAT","NORTH EAST LONDON NHS FOUNDATION TRUST",1208,5522,0.48509933774834435,0.29966887417218541,0.60182119205298013,0.16639072847682118,185,401,247,206,156,13,0,232,495,252,140,61,28,0,0,0,0,0,0,1208,0]
[null,"Q71","RNK","TAVISTOCK AND PORTMAN NHS FOUNDATION TRUST",114,566,0.76315789473684215,0.11403508771929824,0.82456140350877194,3.5087719298245612E-2,43,44,12,5,8,2,0,57,37,14,3,1,2,0,0,0,5,0,0,109,0]
[null,"Q71","RYJ","IMPERIAL COLLEGE HEALTHCARE NHS TRUST",1254,9542,0.55555555555555558,0.22866344605475039,0.75060144346431434,7.6984763432237369E-2,194,496,262,163,121,6,12,312,624,204,63,33,11,7,0,0,0,0,0,1254,0]
[null,"Q71","RF4","BARKING, HAVERING AND REDBRIDGE UNIVERSITY HOSPITALS NHS TRUST",516,6020,0.5794573643410853,0.19186046511627908,0.68410852713178294,7.5581395348837205E-2,74,225,108,66,33,10,0,101,252,111,29,10,13,0,0,0,0,0,0,516,0]
[null,"Q71","RJ1","GUY'S AND ST THOMAS' NHS FOUNDATION TRUST",1578,13148,0.70734824281150155,0.13738019169329074,0.90603174603174608,2.6666666666666668E-2,509,598,223,126,89,20,13,844,583,90,25,17,16,3,0,0,0,0,0,1578,0]
[null,"Q71","RWK","EAST LONDON NHS FOUNDATION TRUST",93,3766,0.73333333333333328,0.1,0.77173913043478259,4.3478260869565216E-2,27,39,15,7,2,0,3,21,50,15,3,1,2,1,0,0,0,0,0,93,0]
[null,"Q71","RFW","WEST MIDDLESEX UNIVERSITY HOSPITAL NHS TRUST",37,1986,0.63888888888888884,0.1111111111111111,0.83333333333333337,5.5555555555555552E-2,7,16,8,2,2,1,1,11,19,2,2,0,2,1,0,0,0,0,0,37,0]
[null,"Q71","RPG","OXLEAS NHS FOUNDATION TRUST",64,3501,0.859375,6.25E-2,0.82539682539682535,1.5873015873015872E-2,35,20,5,3,1,0,0,28,24,10,1,0,0,1,0,0,0,0,0,64,0]
[null,"Q71","RJZ","KING'S COLLEGE HOSPITAL NHS FOUNDATION TRUST",1560,11605,0.54230769230769227,0.22628205128205128,0.73141025641025637,7.0512820512820512E-2,316,530,320,215,138,41,0,458,683,257,66,44,52,0,0,0,169,0,0,1391,0]
[null,"Q71","RT3","ROYAL BROMPTON & HAREFIELD NHS FOUNDATION TRUST",365,3429,0.87818696883852687,5.3824362606232294E-2,0.96418732782369143,1.928374655647383E-2,162,148,24,10,9,0,12,269,81,5,2,5,1,2,0,0,24,0,0,341,0]
[null,"Q71","RJ2","LEWISHAM AND GREENWICH NHS TRUST",536,6058,0.61567164179104472,0.17910447761194029,0.67723880597014929,0.13619402985074627,95,235,109,67,29,1,0,108,255,97,55,18,3,0,0,0,0,0,0,536,0]
[null,"Q71","RV3","CENTRAL AND NORTH WEST LONDON NHS FOUNDATION TRUST",532,6513,0.62593984962406013,0.18421052631578946,0.71052631578947367,8.4586466165413529E-2,106,227,96,67,31,5,0,123,255,100,34,11,9,0,0,0,0,23,0,509,0]
[null,"Q71","RQM","CHELSEA AND WESTMINSTER HOSPITAL NHS FOUNDATION TRUST",460,3355,0.70869565217391306,0.11521739130434783,0.86026200873362446,3.4934497816593885E-2,160,166,76,29,24,5,0,223,171,41,12,4,7,2,0,0,0,0,0,460,0]
[null,"Q71","RRU","LONDON AMBULANCE SERVICE NHS TRUST",242,4518,0.12396694214876033,0.72314049586776863,0.5,0.26033057851239672,8,22,37,73,102,0,0,36,85,58,40,23,0,0,0,0,33,0,0,209,0]
[null,"Q71","RJ6","CROYDON HEALTH SERVICES NHS TRUST",400,3595,0.54,0.23,0.5625,0.17249999999999999,53,163,85,44,48,7,0,62,163,98,36,33,8,0,0,14,140,0,0,246,0]
[null,"Q71","RPY","THE ROYAL MARSDEN NHS FOUNDATION TRUST",1359,4058,0.73684210526315785,0.11193476649369903,0.95845697329376855,1.1869436201780416E-2,427,567,198,89,62,6,10,985,307,33,9,7,7,11,0,0,0,0,0,1359,0]
[null,"Q71","RKL","WEST LONDON MENTAL HEALTH NHS TRUST",194,3152,0.46875,0.28125,0.53367875647668395,0.20725388601036268,20,70,45,27,27,3,2,22,81,44,16,24,6,1,0,0,0,0,0,194,0]
[null,"Q71","RP4","GREAT ORMOND STREET HOSPITAL FOR CHILDREN NHS FOUNDATION TRUST",609,3988,0.73466003316749584,0.12271973466003316,0.94224422442244227,8.2508250825082501E-3,162,281,84,54,20,2,6,357,214,28,4,1,2,3,0,0,0,0,0,609,0]
[null,"Q71","TAF","CAMDEN AND ISLINGTON NHS FOUNDATION TRUST",216,1924,0.5488372093023256,0.20930232558139536,0.65116279069767447,0.13023255813953488,46,72,47,26,19,5,1,52,88,41,13,15,6,1,0,0,216,0,0,0,0]
[null,"Q71","RAL","ROYAL FREE LONDON NHS FOUNDATION TRUST",195,9261,0.6243386243386243,0.21164021164021163,0.75384615384615383,0.1076923076923077,42,76,29,23,17,2,6,65,82,25,13,8,2,0,0,0,0,0,0,195,0]
[null,"Q71","RVR","EPSOM AND ST HELIER UNIVERSITY HOSPITALS NHS TRUST",42,4495,0.45238095238095238,0.26190476190476192,0.66666666666666663,0.26190476190476192,5,14,12,10,1,0,0,9,19,3,11,0,0,0,0,0,8,0,0,34,0]
[null,"Q71","RP6","MOORFIELDS EYE HOSPITAL NHS FOUNDATION TRUST",469,1864,0.76923076923076927,0.10256410256410256,0.96367521367521369,1.4957264957264958E-2,181,179,57,28,20,3,1,312,139,8,5,2,2,1,0,0,0,0,0,469,0]
[null,"Q71","R1H","BARTS HEALTH NHS TRUST",616,14456,0.49003322259136212,0.29734219269102991,0.70636215334420882,9.951060358890701E-2,66,229,123,106,73,5,14,120,313,109,46,15,10,3,0,0,0,0,0,616,0]
[null,"Q71","RAS","THE HILLINGDON HOSPITALS NHS FOUNDATION TRUST",430,3009,0.67365967365967361,0.13286713286713286,0.74186046511627912,0.10930232558139535,122,167,76,34,23,7,1,132,187,56,32,15,8,0,0,0,419,0,0,11,0]
[null,"Q71","RAP","NORTH MIDDLESEX UNIVERSITY HOSPITAL NHS TRUST",118,2958,0.62393162393162394,0.22222222222222221,0.6495726495726496,0.19658119658119658,20,53,18,14,12,0,1,22,54,16,17,6,2,1,0,0,0,0,0,118,0]
[null,"Q71","RKE","THE WHITTINGTON HOSPITAL NHS TRUST",1125,4242,0.61244444444444446,0.25155555555555553,0.77688888888888885,0.08,293,396,149,149,134,4,0,343,531,145,55,35,16,0,0,0,0,0,0,1125,0]
[null,"Q71","RAX","KINGSTON HOSPITAL NHS FOUNDATION TRUST",289,2787,0.607773851590106,0.21201413427561838,0.78321678321678323,6.6433566433566432E-2,59,113,44,35,25,7,6,88,136,31,14,5,12,3,0,0,289,0,0,0,0]
[null,"Q71","RRP","BARNET, ENFIELD AND HARINGEY MENTAL HEALTH NHS TRUST",657,2916,0.50380517503805178,0.30593607305936071,0.55251141552511418,0.20091324200913241,97,234,120,109,92,5,0,105,258,144,80,52,18,0,0,0,0,0,0,657,0]
[null,"Q71","RQY","SOUTH WEST LONDON AND ST GEORGE'S MENTAL HEALTH NHS TRUST",331,2094,0.55151515151515151,0.25151515151515152,0.66565349544072949,0.1276595744680851,48,134,65,43,40,0,1,66,153,63,25,17,5,2,0,0,0,0,0,331,0]
[null,"Q71","RY9","HOUNSLOW AND RICHMOND COMMUNITY HEALTHCARE NHS TRUST",100,1081,0.65,0.15,0.84,0.05,24,41,20,6,9,0,0,34,50,10,3,2,1,0,0,0,0,0,0,100,0]
[null,"Q71","RV5","SOUTH LONDON AND MAUDSLEY NHS FOUNDATION TRUST",1167,4582,0.62273901808785526,0.16795865633074936,0.70557939914163093,0.10300429184549356,255,468,232,121,74,11,6,294,528,200,93,27,23,2,0,0,0,0,0,1167,0]

{"sheet":"Areas","index":2,"n_rows":37,"n_cols":23,"rows_kept":37,"cut":false,"hidden":false,"merged":[[8,16,8,22],[5,2,6,2],[5,4,6,4],[8,1,9,1],[8,2,9,2],[8,3,9,3],[8,4,9,4],[8,5,9,5],[8,6,9,6],[8,7,9,7],[8,8,9,8],[8,9,8,15]]}
[null,"Friends and Family Test - Staff Q4_2014-15"]
[]
[]
[null,null,"                                                                       Show data by:"]
[]
[null,null,"    Sort data by:           ",null,null,null,null,"  "]
[null,null,null,null,null,null,null,"  "]
[]
[null,"Area Team Code","Area Team Name","Total Responses","HSCIC Workforce Headcount","Percentage Recommended - Work","Percentage Not  Recommended - Work","Percentage Recommended - Care","Percentage Not  Recommended - Care","Breakdown of Responses - Work",null,null,null,null,null,null,"Breakdown of Responses - Care"]
[null,null,null,null,null,null,null,null,null,"Extremely Likely","Likely","Neither","Unlikely","Extremely Unlikely","Don't Know","No Response","Extremely Likely","Likely","Neither","Unlikely","Extremely Unlikely","Don't Know","No Response"]
[null,null,"England        ",151605,1155066,0.61651478270199223,0.18932185318553985,0.7721615443230887,7.5190834592195499E-2,31487,60452,27643,17153,11080,1312,2478,47613,67907,20881,7538,3711,1956,1999]
[null,null,"Selection (excluding suppressed data)        ",{"$f":"SUBTOTAL(9,D13:D999)","v":151605},{"$f":"SUBTOTAL(9,E13:E999)","v":1155066},{"$f":"(J12+K12)/SUM(J12:O12)","v":0.61651478270199223},{"$f":"(N12+M12)/SUM(J12:O12)","v":0.18932185318553985},{"$f":"(Q12+R12)/SUM(Q12:V12)","v":0.7721615443230887},{"$f":"(T12+U12)/SUM(Q12:V12)","v":7.5190834592195499E-2},{"$f":"SUBTOTAL(9,J13:J999)","v":31487},60452,27643,17153,{"$f":"SUBTOTAL(9,N13:N999)","v":11080},{"$f":"SUBTOTAL(9,O13:O999)","v":1312},{"$f":"SUBTOTAL(9,P13:P999)","v":2478},{"$f":"SUBTOTAL(9,Q13:Q999)","v":47613},{"$f":"SUBTOTAL(9,R13:R999)","v":67907},{"$f":"SUBTOTAL(9,S13:S37)","v":20881},{"$f":"SUBTOTAL(9,T13:T999)","v":7538},{"$f":"SUBTOTAL(9,U13:U999)","v":3711},{"$f":"SUBTOTAL(9,V13:V999)","v":1956},{"$f":"SUBTOTAL(9,W13:W999)","v":1999}]
[null,"Q44","Cheshire, Warrington And Wirral Area Team",1526,29884,0.61588969139855543,0.20814182534471437,0.76923076923076927,0.10453648915187377,423,515,252,164,153,16,3,601,569,173,93,66,19,5]
[null,"Q45","Durham, Darlington And Tees Area Team",3694,28399,0.68524055449850507,0.15221527589018755,0.82333785617367705,4.9932157394843961E-2,975,1546,570,363,197,28,15,1282,1752,428,118,66,39,9]
[null,"Q46","Greater Manchester Area Team",6286,75482,0.62453350640921634,0.17637514197631024,0.77702265372168289,6.2783171521035602E-2,1416,2433,1175,704,383,52,123,2203,2599,913,268,120,77,106]
[null,"Q47","Lancashire Area Team",4763,30309,0.67140090380890893,0.14267269205939315,0.75459205467748824,6.9201196070055537E-2,967,2153,823,427,236,41,116,1183,2350,757,221,103,68,81]
[null,"Q48","Merseyside Area Team",3674,33982,0.65118819994537014,0.16061185468451242,0.80852226167713737,6.0092870800327776E-2,956,1428,641,341,247,48,13,1434,1526,431,131,89,50,13]
[null,"Q49","Cumbria, Northumberland, Tyne And Wear Area Team",6506,56842,0.70009242144177453,0.12954405422057919,0.79689421894218937,6.5036900369003683E-2,1656,2889,1026,492,349,80,14,2287,2896,763,268,155,135,2]
[null,"Q50","North Yorkshire And Humber Area Team",1767,29025,0.63600000000000001,0.18342857142857144,0.78275666477595007,6.8065796937039139E-2,412,701,309,198,123,7,17,563,817,241,76,44,22,4]
[null,"Q51","South Yorkshire And Bassetlaw Area Team",4901,39144,0.69905115511551152,0.12211221122112212,0.83790421612771182,4.1547277936962751E-2,1250,2139,815,398,194,52,53,1925,2169,528,128,75,61,15]
[null,"Q52","West Yorkshire Area Team",8958,56100,0.54296655028719454,0.2461988962721027,0.71317655001687863,0.10127152019804209,1451,3370,1811,1286,900,61,79,2155,4183,1525,635,265,124,71]
[null,"Q53","Arden, Herefordshire And Worcestershire Area Team",3767,30220,0.6553202894666309,0.19378182792816939,0.76555023923444976,9.0377458798511431E-2,980,1465,521,429,294,42,36,1339,1541,492,216,124,50,5]
[null,"Q54","Birmingham And The Black Country Area Team",5018,66400,0.60799200799200803,0.19340659340659341,0.72805267358339987,0.10335195530726257,1059,1984,939,595,373,55,13,1499,2150,803,333,185,42,6]
[null,"Q55","Derbyshire And Nottinghamshire Area Team",10668,47193,0.67936117936117935,0.12889812889812891,0.85106583663459723,3.8954914167138276E-2,2590,4599,1944,912,452,85,86,4008,5015,1066,297,116,100,66]
[null,"Q56","East Anglia Area Team",10846,53321,0.60763301372438427,0.20154164316600864,0.77567466266866569,8.3583208395802105E-2,2120,4344,1934,1331,813,96,208,3476,4802,1352,581,311,150,174]
[null,"Q57","Essex Area Team",3321,28900,0.59040144883791124,0.21551463929972833,0.75309014169430211,9.1950557732891167E-2,676,1280,617,406,308,26,8,924,1574,475,194,111,39,4]
[null,"Q58","Hertfordshire And The South Midlands Area Team",5736,36300,0.56790639364814044,0.22503134141245298,0.71161048689138573,0.10965459841864336,872,1846,952,618,459,39,950,1167,2253,794,346,181,65,930]
[null,"Q59","Leicestershire And Lincolnshire Area Team",5495,29845,0.51238164603059,0.21540422432629278,0.59392064069894435,0.15034583181652711,674,2140,1425,758,425,70,3,851,2412,1303,576,250,102,1]
[null,"Q60","Shropshire And Staffordshire Area Team",4973,32205,0.56167262029838205,0.22336625341458288,0.76588210789418876,7.2276609039783377E-2,802,1871,989,628,435,34,214,1292,2385,720,225,122,57,172]
[null,"Q64","Bath, Gloucestershire, Swindon And Wiltshire Area Team",2444,29344,0.59435120753172332,0.2247237003683995,0.78925789257892576,6.9700697006970069E-2,494,958,423,326,223,19,1,833,1092,314,106,64,30,5]
[null,"Q65","Bristol, North Somerset, Somerset And South Gloucestershire Area Team",3545,28969,0.56382978723404253,0.23145485911443359,0.75361497022965696,9.4698043663169834E-2,573,1388,687,485,320,25,67,984,1674,500,238,96,35,18]
[null,"Q66","Devon, Cornwall And Isles Of Scilly Area Team",6223,36967,0.56511175898930999,0.23048266925817945,0.7859455958549223,6.7681347150259072E-2,1026,2463,1222,869,554,40,49,1991,2863,853,305,113,51,47]
[null,"Q67","Kent And Medway Area Team",4872,29327,0.54932502596054,0.24382139148494289,0.74241794765267966,7.9351890319900295E-2,827,1818,972,722,452,24,57,1245,2329,808,272,110,50,58]
[null,"Q68","Surrey And Sussex Area Team",7073,55607,0.63437945791726102,0.18402282453637661,0.79671108590870432,6.4360646441735184E-2,1667,2780,1187,711,579,86,63,2594,3026,883,316,138,97,19]
[null,"Q69","Thames Valley Area Team",7464,35101,0.60624575695858796,0.19022403258655804,0.79813664596273293,4.9824466648663246E-2,1366,3099,1450,886,515,49,99,2185,3726,1050,252,117,76,58]
[null,"Q70","Wessex Area Team",7255,52643,0.65297627306785067,0.16234216733731094,0.83060488346281913,4.6476137624861268E-2,1511,3195,1283,752,418,48,48,2532,3455,795,224,111,91,47]
[null,"Q71","London Area Team",20830,183557,0.61835935611736836,0.1948083337361628,0.76198968525569966,8.1843158046946543E-2,4744,8048,3676,2352,1678,189,143,7060,8749,2914,1119,579,326,83]

{"sheet":"BS","index":3,"n_rows":241,"n_cols":31,"rows_kept":241,"cut":false,"hidden":true,"merged":[[27,2,29,3],[27,4,29,5]]}
["Please select criteria…",1,"Area Code","All Areas","Area Code","All Areas",null,null,null,null,"Dropdown linked cells",null,"Please select criteria…",1,"Org Code","All Organisations",null,null,null,null,"Dropdown linked cells",null,null,"Area Code","Org Code","All Organisations","<---fixed lists",null,"linked lists Org tab--->","Org Code","All Organisations"]
["Area Team Code",null,"Q44","Cheshire, Warrington And Wirral Area Team","Q44","Arden, Herefordshire And Worcestershire Area Team",null,null,null,"Area Code =",1,null,"Area Team Code",null,"RY7","WIRRAL COMMUNITY NHS TRUST",null,null,null,"Area Code =",1,null,null,"Q44","RY7","WIRRAL COMMUNITY NHS TRUST",null,null,null,"R1A","2GETHER NHS FOUNDATION TRUST"]
["Area Team Name",null,"Q45","Durham, Darlington And Tees Area Team","Q45","Bath, Gloucestershire, Swindon And Wiltshire Area Team",null,null,null,"Area Name =",1,null,"Org Code",null,"RTV","5 BOROUGHS PARTNERSHIP NHS FOUNDATION TRUST",null,null,null,"Area Name =",1,null,null,"Q44","RTV","5 BOROUGHS PARTNERSHIP NHS FOUNDATION TRUST",null,null,null,"R1C","5 BOROUGHS PARTNERSHIP NHS FOUNDATION TRUST"]
["Total Responses",null,"Q46","Greater Manchester Area Team","Q46","Birmingham And The Black Country Area Team",null,null,null,null,"N/A",null,"Org Name",null,"RBT","MID CHESHIRE HOSPITALS NHS FOUNDATION TRUST",null,null,null,"Org Code =",1,null,null,"Q44","RBT","MID CHESHIRE HOSPITALS NHS FOUNDATION TRUST",null,null,null,"R1D","AINTREE UNIVERSITY HOSPITAL NHS FOUNDATION TRUST"]
["HSCIC Workforce Headcount",null,"Q47","Lancashire Area Team","Q47","Bristol, North Somerset, Somerset And South Gloucestershire Area Team",null,null,null,null,"N/A",null,"Total Responses",null,"RWW","WARRINGTON AND HALTON HOSPITALS NHS FOUNDATION TRUST",null,null,null,"Org Name =",1,null,null,"Q44","RWW","WARRINGTON AND HALTON HOSPITALS NHS FOUNDATION TRUST",null,null,null,"R1E","AIREDALE NHS FOUNDATION TRUST"]
["Percentage Recommended - Work",null,"Q48","Merseyside Area Team","Q48","Cheshire, Warrington And Wirral Area Team",null,null,null,null,null,null,"HSCIC Workforce Headcount",null,"RJN","EAST CHESHIRE NHS TRUST",null,null,null,null,"N/A",null,null,"Q44","RJN","EAST CHESHIRE NHS TRUST",null,null,null,"R1F","ALDER HEY CHILDREN'S NHS FOUNDATION TRUST"]
["Percentage Not  Recommended - Work",null,"Q49","Cumbria, Northumberland, Tyne And Wear Area Team","Q49","Cumbria, Northumberland, Tyne And Wear Area Team",null,null,null,null,null,null,"Percentage Recommended - Work",null,"RBL","WIRRAL UNIVERSITY TEACHING HOSPITAL NHS FOUNDATION TRUST",null,null,null,null,"N/A",null,null,"Q44","RBL","WIRRAL UNIVERSITY TEACHING HOSPITAL NHS FOUNDATION TRUST",null,null,null,"R1G","ASHFORD AND ST PETER'S HOSPITALS NHS FOUNDATION TRUST"]
["Percentage Recommended - Care",null,"Q50","North Yorkshire And Humber Area Team","Q50","Derbyshire And Nottinghamshire Area Team",null,null,null,null,null,null,"Percentage Not  Recommended - Work",null,"RJR","COUNTESS OF CHESTER HOSPITAL NHS FOUNDATION TRUST",null,null,null,null,null,null,null,"Q44","RJR","COUNTESS OF CHESTER HOSPITAL NHS FOUNDATION TRUST",null,null,null,"R1H","AVON AND WILTSHIRE MENTAL HEALTH PARTNERSHIP NHS TRUST"]
["Percentage Not  Recommended - Care",null,"Q51","South Yorkshire And Bassetlaw Area Team","Q51","Devon, Cornwall And Isles Of Scilly Area Team",null,null,null,null,null,null,"Percentage Recommended - Care",null,"RXA","CHESHIRE AND WIRRAL PARTNERSHIP NHS FOUNDATION TRUST",null,null,null,null,null,null,null,"Q44","RXA","CHESHIRE AND WIRRAL PARTNERSHIP NHS FOUNDATION TRUST",null,null,null,"R1J","BARKING, HAVERING AND REDBRIDGE UNIVERSITY HOSPITALS NHS TRUST"]
["Work - Extremely Likely",null,"Q52","West Yorkshire Area Team","Q52","Durham, Darlington And Tees Area Team",null,null,null,null,null,null,"Percentage Not  Recommended - Care",null,"REN","THE CLATTERBRIDGE CANCER CENTRE NHS FOUNDATION TRUST",null,null,null,null,null,null,null,"Q44","REN","THE CLATTERBRIDGE CANCER CENTRE NHS FOUNDATION TRUST",null,null,null,"R1K","BARNET, ENFIELD AND HARINGEY MENTAL HEALTH NHS TRUST"]
["Work - Likely",null,"Q53","Arden, Herefordshire And Worcestershire Area Team","Q53","East Anglia Area Team",null,null,null,null,null,null,"Work - Extremely Likely",null,"RX3","TEES, ESK AND WEAR VALLEYS NHS FOUNDATION TRUST",null,null,null,null,null,null,null,"Q45","RX3","TEES, ESK AND WEAR VALLEYS NHS FOUNDATION TRUST",null,null,null,"RA2","BARNSLEY HOSPITAL NHS FOUNDATION TRUST"]
["Work - Neither",null,"Q54","Birmingham And The Black Country Area Team","Q54","Essex Area Team",null,null,null,null,null,null,"Work - Likely",null,"RTR","SOUTH TEES HOSPITALS NHS FOUNDATION TRUST",null,null,null,null,null,null,null,"Q45","RTR","SOUTH TEES HOSPITALS NHS FOUNDATION TRUST",null,null,null,"RA3","BARTS HEALTH NHS TRUST"]
["Work - Unlikely",null,"Q55","Derbyshire And Nottinghamshire Area Team","Q55","Greater Manchester Area Team",null,null,null,null,null,null,"Work - Neither",null,"RVW","NORTH TEES AND HARTLEPOOL NHS FOUNDATION TRUST",null,null,null,null,null,null,null,"Q45","RVW","NORTH TEES AND HARTLEPOOL NHS FOUNDATION TRUST",null,null,null,"RA4","BASILDON AND THURROCK UNIVERSITY HOSPITALS NHS FOUNDATION TRUST"]
["Work - Extremely Unlikely",null,"Q56","East Anglia Area Team","Q56","Hertfordshire And The South Midlands Area Team",null,null,null,null,null,null,"Work - Unlikely",null,"RXP","COUNTY DURHAM AND DARLINGTON NHS FOUNDATION TRUST",null,null,null,null,null,null,null,"Q45","RXP","COUNTY DURHAM AND DARLINGTON NHS FOUNDATION TRUST",null,null,null,"RA7","BEDFORD HOSPITAL NHS TRUST"]
["Work - Don't Know",null,"Q57","Essex Area Team","Q57","Kent And Medway Area Team",null,null,null,null,null,null,"Work - Extremely Unlikely",null,"RW3","CENTRAL MANCHESTER UNIVERSITY HOSPITALS NHS FOUNDATION TRUST",null,null,null,null,null,null,null,"Q46","RW3","CENTRAL MANCHESTER UNIVERSITY HOSPITALS NHS FOUNDATION TRUST",null,null,null,"RA9","BERKSHIRE HEALTHCARE NHS FOUNDATION TRUST"]
["Work - No Response",null,"Q58","Hertfordshire And The South Midlands Area Team","Q58","Lancashire Area Team",null,null,null,null,null,null,"Work - Don't Know",null,"RM2","UNIVERSITY HOSPITAL OF SOUTH MANCHESTER NHS FOUNDATION TRUST",null,null,null,null,null,null,null,"Q46","RM2","UNIVERSITY HOSPITAL OF SOUTH MANCHESTER NHS FOUNDATION TRUST",null,null,null,"RAE","BIRMINGHAM AND SOLIHULL MENTAL HEALTH NHS FOUNDATION TRUST"]
["Care - Extremely Likely",null,"Q59","Leicestershire And Lincolnshire Area Team","Q59","Leicestershire And Lincolnshire Area Team",null,null,null,null,null,null,"Work - No Response",null,"RMP","TAMESIDE HOSPITAL NHS FOUNDATION TRUST",null,null,null,null,null,null,null,"Q46","RMP","TAMESIDE HOSPITAL NHS FOUNDATION TRUST",null,null,null,"RAJ","BIRMINGHAM CHILDREN'S HOSPITAL NHS FOUNDATION TRUST"]
["Care - Likely",null,"Q60","Shropshire And Staffordshire Area Team","Q60","London Area Team",null,null,null,null,null,null,"Care - Extremely Likely",null,"RY2","BRIDGEWATER COMMUNITY HEALTHCARE NHS FOUNDATION TRUST",null,null,null,null,null,null,null,"Q46","RY2","BRIDGEWATER COMMUNITY HEALTHCARE NHS FOUNDATION TRUST",null,null,null,"RAL","BIRMINGHAM COMMUNITY HEALTHCARE NHS TRUST"]
["Care - Neither",null,"Q64","Bath, Gloucestershire, Swindon And Wiltshire Area Team","Q64","Merseyside Area Team",null,null,null,null,null,null,"Care - Likely",null,"RWJ","STOCKPORT NHS FOUNDATION TRUST",null,null,null,null,null,null,null,"Q46","RWJ","STOCKPORT NHS FOUNDATION TRUST",null,null,null,"RAN","BIRMINGHAM WOMEN'S NHS FOUNDATION TRUST"]
["Care - Unlikely",null,"Q65","Bristol, North Somerset, Somerset And South Gloucestershire Area Team","Q65","North Yorkshire And Humber Area Team",null,null,null,null,null,null,"Care - Neither",null,"RBV","THE CHRISTIE NHS FOUNDATION TRUST",null,null,null,null,null,null,null,"Q46","RBV","THE CHRISTIE NHS FOUNDATION TRUST",null,null,null,"RAP","BLACK COUNTRY PARTNERSHIP NHS FOUNDATION TRUST"]
["Care - Extremely Unlikely",null,"Q66","Devon, Cornwall And Isles Of Scilly Area Team","Q66","Shropshire And Staffordshire Area Team",null,null,null,null,null,null,"Care - Unlikely",null,"RX7","NORTH WEST AMBULANCE SERVICE NHS TRUST",null,null,null,null,null,null,null,"Q46","RX7","NORTH WEST AMBULANCE SERVICE NHS TRUST",null,null,null,"RAS","BLACKPOOL TEACHING HOSPITALS NHS FOUNDATION TRUST"]
["Care - Don't Know",null,"Q67","Kent And Medway Area Team","Q67","South Yorkshire And Bassetlaw Area Team",null,null,null,null,null,null,"Care - Extremely Unlikely",null,"RRF","WRIGHTINGTON, WIGAN AND LEIGH NHS FOUNDATION TRUST",null,null,null,null,null,null,null,"Q46","RRF","WRIGHTINGTON, WIGAN AND LEIGH NHS FOUNDATION TRUST",null,null,null,"RAT","BOLTON NHS FOUNDATION TRUST"]
["Care - No Response",null,"Q68","Surrey And Sussex Area Team","Q68","Surrey And Sussex Area Team",null,null,null,null,null,null,"Care - Don't Know",null,"RXV","GREATER MANCHESTER WEST MENTAL HEALTH NHS FOUNDATION TRUST",null,null,null,null,null,null,null,"Q46","RXV","GREATER MANCHESTER WEST MENTAL HEALTH NHS FOUNDATION TRUST",null,null,null,"RAX","BRADFORD DISTRICT CARE NHS FOUNDATION TRUST"]
[null,null,"Q69","Thames Valley Area Team","Q69","Thames Valley Area Team",null,null,null,null,null,null,"Care - No Response",null,"RW6","PENNINE ACUTE HOSPITALS NHS TRUST",null,null,null,null,null,null,null,"Q46","RW6","PENNINE ACUTE HOSPITALS NHS TRUST",null,null,null,"RBA","BRADFORD TEACHING HOSPITALS NHS FOUNDATION TRUST"]
[null,null,"Q70","Wessex Area Team","Q70","Wessex Area Team",null,null,null,null,null,null,"SMS/Text/\nSmartphone app",null,"RT2","PENNINE CARE NHS FOUNDATION TRUST",null,null,null,null,null,null,null,"Q46","RT2","PENNINE CARE NHS FOUNDATION TRUST",null,null,null,"RBD","BRIDGEWATER COMMUNITY HEALTHCARE NHS FOUNDATION TRUST"]
[null,null,"Q71","London Area Team","Q71","West Yorkshire Area Team",null,null,null,null,null,null,"Electronic tablet/Kiosk",null,"RM3","SALFORD ROYAL NHS FOUNDATION TRUST",null,null,null,null,null,null,null,"Q46","RM3","SALFORD ROYAL NHS FOUNDATION TRUST",null,null,null,"RBK","BRIGHTON AND SUSSEX UNIVERSITY HOSPITALS NHS TRUST"]
[null,null,null,null,null,null,null,null,null,null,null,null,"Paper survey at work",null,"RMC","BOLTON NHS FOUNDATION TRUST",null,null,null,null,null,null,null,"Q46","RMC","BOLTON NHS FOUNDATION TRUST",null,null,null,"RBL","BUCKINGHAMSHIRE HEALTHCARE NHS TRUST"]
[null,null,"code and name linked",null,"alphabeticalized lists code and name not linked",null,null,null,null,null,null,null,"Paper survey sent to home ",null,"TAE","MANCHESTER MENTAL HEALTH AND SOCIAL CARE TRUST",null,null,null,null,null,null,null,"Q46","TAE","MANCHESTER MENTAL HEALTH AND SOCIAL CARE TRUST",null,null,null,"RBN","BURTON HOSPITALS NHS FOUNDATION TRUST"]
[null,null,null,null,null,null,null,null,null,null,null,null,"Telephone survey",null,"RXL","BLACKPOOL TEACHING HOSPITALS NHS FOUNDATION TRUST",null,null,null,null,null,null,null,"Q47","RXL","BLACKPOOL TEACHING HOSPITALS NHS FOUNDATION TRUST",null,null,null,"RBQ","CALDERDALE AND HUDDERSFIELD NHS FOUNDATION TRUST"]
[null,null,null,null,null,null,null,null,null,null,null,null,"Online survey",null,"RW5","LANCASHIRE CARE NHS FOUNDATION TRUST",null,null,null,null,null,null,null,"Q47","RW5","LANCASHIRE CARE NHS FOUNDATION TRUST",null,null,null,"RBS","CALDERSTONES PARTNERSHIP NHS FOUNDATION TRUST"]
[null,null,null,null,null,null,null,null,null,null,null,null,"Other",null,"RXN","LANCASHIRE TEACHING HOSPITALS NHS FOUNDATION TRUST",null,null,null,null,null,null,null,"Q47","RXN","LANCASHIRE TEACHING HOSPITALS NHS FOUNDATION TRUST",null,null,null,"RBT","CAMBRIDGE UNIVERSITY HOSPITALS NHS FOUNDATION TRUST"]
[null,null,null,null,null,null,null,null,null,null,null,null,null,null,"RXR","EAST LANCASHIRE HOSPITALS NHS TRUST",null,null,null,null,null,null,null,"Q47","RXR","EAST LANCASHIRE HOSPITALS NHS TRUST",null,null,null,"RBV","CAMBRIDGESHIRE AND PETERBOROUGH NHS FOUNDATION TRUST"]
[null,null,null,null,null,null,null,null,null,null,null,null,null,null,"RJX","CALDERSTONES PARTNERSHIP NHS FOUNDATION TRUST",null,null,null,null,null,null,null,"Q47","RJX","CALDERSTONES PARTNERSHIP NHS FOUNDATION TRUST",null,null,null,"RBZ","CAMBRIDGESHIRE COMMUNITY SERVICES NHS TRUST"]
[null,null,null,null,null,null,null,null,null,null,null,null,null,null,"REP","LIVERPOOL WOMEN'S NHS FOUNDATION TRUST",null,null,null,null,null,null,null,"Q48","REP","LIVERPOOL WOMEN'S NHS FOUNDATION TRUST",null,null,null,"RC1","CAMDEN AND ISLINGTON NHS FOUNDATION TRUST"]
[null,null,null,null,null,null,null,null,null,null,null,null,null,null,"RBQ","LIVERPOOL HEART AND CHEST HOSPITAL NHS FOUNDATION TRUST",null,null,null,null,null,null,null,"Q48","RBQ","LIVERPOOL HEART AND CHEST HOSPITAL NHS FOUNDATION TRUST",null,null,null,"RC9","CENTRAL AND NORTH WEST LONDON NHS FOUNDATION TRUST"]
[null,null,null,null,null,null,null,null,null,null,null,null,null,null,"RW4","MERSEY CARE NHS TRUST",null,null,null,null,null,null,null,"Q48","RW4","MERSEY CARE NHS TRUST",null,null,null,"RCB","CENTRAL LONDON COMMUNITY HEALTHCARE NHS TRUST"]
[null,null,null,null,null,null,null,null,null,null,null,null,null,null,"RBS","ALDER HEY CHILDREN'S NHS FOUNDATION TRUST",null,null,null,null,null,null,null,"Q48","RBS","ALDER HEY CHILDREN'S NHS FOUNDATION TRUST",null,null,null,"RCD","CENTRAL MANCHESTER UNIVERSITY HOSPITALS NHS FOUNDATION TRUST"]
[null,null,null,null,null,null,null,null,null,null,null,null,null,null,"RET","THE WALTON CENTRE NHS FOUNDATION TRUST",null,null,null,null,null,null,null,"Q48","RET","THE WALTON CENTRE NHS FOUNDATION TRUST",null,null,null,"RCF","CHELSEA AND WESTMINSTER HOSPITAL NHS FOUNDATION TRUST"]
[null,null,null,null,null,null,null,null,null,null,null,null,null,null,"RY1","LIVERPOOL COMMUNITY HEALTH NHS TRUST",null,null,null,null,null,null,null,"Q48","RY1","LIVERPOOL COMMUNITY HEALTH NHS TRUST",null,null,null,"RCU","CHESHIRE AND WIRRAL PARTNERSHIP NHS FOUNDATION TRUST"]
[null,null,null,null,null,null,null,null,null,null,null,null,null,null,"REM","AINTREE UNIVERSITY HOSPITAL NHS FOUNDATION TRUST",null,null,null,null,null,null,null,"Q48","REM","AINTREE UNIVERSITY HOSPITAL NHS FOUNDATION TRUST",null,null,null,"RCX","CHESTERFIELD ROYAL HOSPITAL NHS FOUNDATION TRUST"]
[null,null,null,null,null,null,null,null,null,null,null,null,null,null,"RBN","ST HELENS AND KNOWSLEY HOSPITALS NHS TRUST",null,null,null,null,null,null,null,"Q48","RBN","ST HELENS AND KNOWSLEY HOSPITALS NHS TRUST",null,null,null,"RD1","CITY HOSPITALS SUNDERLAND NHS FOUNDATION TRUST"]
[null,null,null,null,null,null,null,null,null,null,null,null,null,null,"RQ6","ROYAL LIVERPOOL AND BROADGREEN UNIVERSITY HOSPITALS NHS TRUST",null,null,null,null,null,null,null,"Q48","RQ6","ROYAL LIVERPOOL AND BROADGREEN UNIVERSITY HOSPITALS NHS TRUST",null,null,null,"RD3","COLCHESTER HOSPITAL UNIVERSITY NHS FOUNDATION TRUST"]
[null,null,null,null,null,null,null,null,null,null,null,null,null,null,"RVY","SOUTHPORT AND ORMSKIRK HOSPITAL NHS TRUST",null,null,null,null,null,null,null,"Q48","RVY","SOUTHPORT AND ORMSKIRK HOSPITAL NHS TRUST",null,null,null,"RD8","CORNWALL PARTNERSHIP NHS FOUNDATION TRUST"]
[null,null,null,null,null,null,null,null,null,null,null,null,null,null,"RR7","GATESHEAD HEALTH NHS FOUNDATION TRUST",null,null,null,null,null,null,null,"Q49","RR7","GATESHEAD HEALTH NHS FOUNDATION TRUST",null,null,null,"RDD","COUNTESS OF CHESTER HOSPITAL NHS FOUNDATION TRUST"]
[null,null,null,null,null,null,null,null,null,null,null,null,null,null,"RTD","THE NEWCASTLE UPON TYNE HOSPITALS NHS FOUNDATION TRUST",null,null,null,null,null,null,null,"Q49","RTD","THE NEWCASTLE UPON TYNE HOSPITALS NHS FOUNDATION TRUST",null,null,null,"RDE","COUNTY DURHAM AND DARLINGTON NHS FOUNDATION TRUST"]
[null,null,null,null,null,null,null,null,null,null,null,null,null,null,"RTF","NORTHUMBRIA HEALTHCARE NHS FOUNDATION TRUST",null,null,null,null,null,null,null,"Q49","RTF","NORTHUMBRIA HEALTHCARE NHS FOUNDATION TRUST",null,null,null,"RDR","COVENTRY AND WARWICKSHIRE PARTNERSHIP NHS TRUST"]
[null,null,null,null,null,null,null,null,null,null,null,null,null,null,"RTX","UNIVERSITY HOSPITALS OF MORECAMBE BAY NHS FOUNDATION TRUST",null,null,null,null,null,null,null,"Q49","RTX","UNIVERSITY HOSPITALS OF MORECAMBE BAY NHS FOUNDATION TRUST",null,null,null,"RDU","CROYDON HEALTH SERVICES NHS TRUST"]
[null,null,null,null,null,null,null,null,null,null,null,null,null,null,"RNN","CUMBRIA PARTNERSHIP NHS FOUNDATION TRUST",null,null,null,null,null,null,null,"Q49","RNN","CUMBRIA PARTNERSHIP NHS FOUNDATION TRUST",null,null,null,"RDY","CUMBRIA PARTNERSHIP NHS FOUNDATION TRUST"]
[null,null,null,null,null,null,null,null,null,null,null,null,null,null,"RE9","SOUTH TYNESIDE NHS FOUNDATION TRUST",null,null,null,null,null,null,null,"Q49","RE9","SOUTH TYNESIDE NHS FOUNDATION TRUST",null,null,null,"RDZ","DARTFORD AND GRAVESHAM NHS TRUST"]
[null,null,null,null,null,null,null,null,null,null,null,null,null,null,"RX4","NORTHUMBERLAND, TYNE AND WEAR NHS FOUNDATION TRUST",null,null,null,null,null,null,null,"Q49","RX4","NORTHUMBERLAND, TYNE AND WEAR NHS FOUNDATION TRUST",null,null,null,"RE9","DERBY TEACHING HOSPITALS NHS FOUNDATION TRUST"]
[null,null,null,null,null,null,null,null,null,null,null,null,null,null,"RNL","NORTH CUMBRIA UNIVERSITY HOSPITALS NHS TRUST",null,null,null,null,null,null,null,"Q49","RNL","NORTH CUMBRIA UNIVERSITY HOSPITALS NHS TRUST",null,null,null,"REF","DERBYSHIRE COMMUNITY HEALTH SERVICES NHS FOUNDATION TRUST"]
[null,null,null,null,null,null,null,null,null,null,null,null,null,null,"RX6","NORTH EAST AMBULANCE SERVICE NHS FOUNDATION TRUST",null,null,null,null,null,null,null,"Q49","RX6","NORTH EAST AMBULANCE SERVICE NHS FOUNDATION TRUST",null,null,null,"REM","DERBYSHIRE HEALTHCARE NHS FOUNDATION TRUST"]
[null,null,null,null,null,null,null,null,null,null,null,null,null,null,"RLN","CITY HOSPITALS SUNDERLAND NHS FOUNDATION TRUST",null,null,null,null,null,null,null,"Q49","RLN","CITY HOSPITALS SUNDERLAND NHS FOUNDATION TRUST",null,null,null,"REN","DEVON PARTNERSHIP NHS TRUST"]
[null,null,null,null,null,null,null,null,null,null,null,null,null,null,"RWA","HULL AND EAST YORKSHIRE HOSPITALS NHS TRUST",null,null,null,null,null,null,null,"Q50","RWA","HULL AND EAST YORKSHIRE HOSPITALS NHS TRUST",null,null,null,"REP","DONCASTER AND BASSETLAW HOSPITALS NHS FOUNDATION TRUST"]
[null,null,null,null,null,null,null,null,null,null,null,null,null,null,"RCD","HARROGATE AND DISTRICT NHS FOUNDATION TRUST",null,null,null,null,null,null,null,"Q50","RCD","HARROGATE AND DISTRICT NHS FOUNDATION TRUST",null,null,null,"RET","DORSET COUNTY HOSPITAL NHS FOUNDATION TRUST"]
[null,null,null,null,null,null,null,null,null,null,null,null,null,null,"RJL","NORTHERN LINCOLNSHIRE AND GOOLE NHS FOUNDATION TRUST",null,null,null,null,null,null,null,"Q50","RJL","NORTHERN LINCOLNSHIRE AND GOOLE NHS FOUNDATION TRUST",null,null,null,"RF4","DORSET HEALTHCARE UNIVERSITY NHS FOUNDATION TRUST"]
[null,null,null,null,null,null,null,null,null,null,null,null,null,null,"RV9","HUMBER NHS FOUNDATION TRUST",null,null,null,null,null,null,null,"Q50","RV9","HUMBER NHS FOUNDATION TRUST",null,null,null,"RFF","DUDLEY AND WALSALL MENTAL HEALTH PARTNERSHIP NHS TRUST"]
[null,null,null,null,null,null,null,null,null,null,null,null,null,null,"RCB","YORK TEACHING HOSPITAL NHS FOUNDATION TRUST",null,null,null,null,null,null,null,"Q50","RCB","YORK TEACHING HOSPITAL NHS FOUNDATION TRUST",null,null,null,"RFR","EAST AND NORTH HERTFORDSHIRE NHS TRUST"]
[null,null,null,null,null,null,null,null,null,null,null,null,null,null,"TAH","SHEFFIELD HEALTH & SOCIAL CARE NHS FOUNDATION TRUST",null,null,null,null,null,null,null,"Q51","TAH","SHEFFIELD HEALTH & SOCIAL CARE NHS FOUNDATION TRUST",null,null,null,"RFS","EAST CHESHIRE NHS TRUST"]
[null,null,null,null,null,null,null,null,null,null,null,null,null,null,"RHQ","SHEFFIELD TEACHING HOSPITALS NHS FOUNDATION TRUST",null,null,null,null,null,null,null,"Q51","RHQ","SHEFFIELD TEACHING HOSPITALS NHS FOUNDATION TRUST",null,null,null,"RFW","EAST KENT HOSPITALS UNIVERSITY NHS FOUNDATION TRUST"]
[null,null,null,null,null,null,null,null,null,null,null,null,null,null,"RFF","BARNSLEY HOSPITAL NHS FOUNDATION TRUST",null,null,null,null,null,null,null,"Q51","RFF","BARNSLEY HOSPITAL NHS FOUNDATION TRUST",null,null,null,"RGD","EAST LANCASHIRE HOSPITALS NHS TRUST"]
[null,null,null,null,null,null,null,null,null,null,null,null,null,null,"RP5","DONCASTER AND BASSETLAW HOSPITALS NHS FOUNDATION TRUST",null,null,null,null,null,null,null,"Q51","RP5","DONCASTER AND BASSETLAW HOSPITALS NHS FOUNDATION TRUST",null,null,null,"RGM","EAST LONDON NHS FOUNDATION TRUST"]
[null,null,null,null,null,null,null,null,null,null,null,null,null,null,"RXE","ROTHERHAM DONCASTER AND SOUTH HUMBER NHS FOUNDATION TRUST",null,null,null,null,null,null,null,"Q51","RXE","ROTHERHAM DONCASTER AND SOUTH HUMBER NHS FOUNDATION TRUST",null,null,null,"RGN","EAST MIDLANDS AMBULANCE SERVICE NHS TRUST"]
[null,null,null,null,null,null,null,null,null,null,null,null,null,null,"RFR","THE ROTHERHAM NHS FOUNDATION TRUST",null,null,null,null,null,null,null,"Q51","RFR","THE ROTHERHAM NHS FOUNDATION TRUST",null,null,null,"RGP","EAST OF ENGLAND AMBULANCE SERVICE NHS TRUST"]
[null,null,null,null,null,null,null,null,null,null,null,null,null,null,"RCU","SHEFFIELD CHILDREN'S NHS FOUNDATION TRUST",null,null,null,null,null,null,null,"Q51","RCU","SHEFFIELD CHILDREN'S NHS FOUNDATION TRUST",null,null,null,"RGQ","EAST SUSSEX HEALTHCARE NHS TRUST"]
[null,null,null,null,null,null,null,null,null,null,null,null,null,null,"RY6","LEEDS COMMUNITY HEALTHCARE NHS TRUST",null,null,null,null,null,null,null,"Q52","RY6","LEEDS COMMUNITY HEALTHCARE NHS TRUST",null,null,null,"RGR","EPSOM AND ST HELIER UNIVERSITY HOSPITALS NHS TRUST"]
[null,null,null,null,null,null,null,null,null,null,null,null,null,null,"RR8","LEEDS TEACHING HOSPITALS NHS TRUST",null,null,null,null,null,null,null,"Q52","RR8","LEEDS TEACHING HOSPITALS NHS TRUST",null,null,null,"RGT","FRIMLEY HEALTH NHS FOUNDATION TRUST"]
[null,null,null,null,null,null,null,null,null,null,null,null,null,null,"RX8","YORKSHIRE AMBULANCE SERVICE NHS TRUST",null,null,null,null,null,null,null,"Q52","RX8","YORKSHIRE AMBULANCE SERVICE NHS TRUST",null,null,null,"RH5","GATESHEAD HEALTH NHS FOUNDATION TRUST"]
[null,null,null,null,null,null,null,null,null,null,null,null,null,null,"RXF","MID YORKSHIRE HOSPITALS NHS TRUST",null,null,null,null,null,null,null,"Q52","RXF","MID YORKSHIRE HOSPITALS NHS TRUST",null,null,null,"RH8","GEORGE ELIOT HOSPITAL NHS TRUST"]
[null,null,null,null,null,null,null,null,null,null,null,null,null,null,"RXG","SOUTH WEST YORKSHIRE PARTNERSHIP NHS FOUNDATION TRUST",null,null,null,null,null,null,null,"Q52","RXG","SOUTH WEST YORKSHIRE PARTNERSHIP NHS FOUNDATION TRUST",null,null,null,"RHA","GLOUCESTERSHIRE CARE SERVICES NHS TRUST"]
[null,null,null,null,null,null,null,null,null,null,null,null,null,null,"RGD","LEEDS AND YORK PARTNERSHIP NHS FOUNDATION TRUST",null,null,null,null,null,null,null,"Q52","RGD","LEEDS AND YORK PARTNERSHIP NHS FOUNDATION TRUST",null,null,null,"RHM","GLOUCESTERSHIRE HOSPITALS NHS FOUNDATION TRUST"]
[null,null,null,null,null,null,null,null,null,null,null,null,null,null,"TAD","BRADFORD DISTRICT CARE NHS FOUNDATION TRUST",null,null,null,null,null,null,null,"Q52","TAD","BRADFORD DISTRICT CARE NHS FOUNDATION TRUST",null,null,null,"RHQ","GREAT ORMOND STREET HOSPITAL FOR CHILDREN NHS FOUNDATION TRUST"]
[null,null,null,null,null,null,null,null,null,null,null,null,null,null,"RAE","BRADFORD TEACHING HOSPITALS NHS FOUNDATION TRUST",null,null,null,null,null,null,null,"Q52","RAE","BRADFORD TEACHING HOSPITALS NHS FOUNDATION TRUST",null,null,null,"RHU","GREAT WESTERN HOSPITALS NHS FOUNDATION TRUST"]
[null,null,null,null,null,null,null,null,null,null,null,null,null,null,"RWY","CALDERDALE AND HUDDERSFIELD NHS FOUNDATION TRUST",null,null,null,null,null,null,null,"Q52","RWY","CALDERDALE AND HUDDERSFIELD NHS FOUNDATION TRUST",null,null,null,"RHW","GREATER MANCHESTER WEST MENTAL HEALTH NHS FOUNDATION TRUST"]
[null,null,null,null,null,null,null,null,null,null,null,null,null,null,"RCF","AIREDALE NHS FOUNDATION TRUST",null,null,null,null,null,null,null,"Q52","RCF","AIREDALE NHS FOUNDATION TRUST",null,null,null,"RJ1","GUY'S AND ST THOMAS' NHS FOUNDATION TRUST"]
[null,null,null,null,null,null,null,null,null,null,null,null,null,null,"R1A","WORCESTERSHIRE HEALTH AND CARE NHS TRUST",null,null,null,null,null,null,null,"Q53","R1A","WORCESTERSHIRE HEALTH AND CARE NHS TRUST",null,null,null,"RJ2","HAMPSHIRE HOSPITALS NHS FOUNDATION TRUST"]
[null,null,null,null,null,null,null,null,null,null,null,null,null,null,"RYG","COVENTRY AND WARWICKSHIRE PARTNERSHIP NHS TRUST",null,null,null,null,null,null,null,"Q53","RYG","COVENTRY AND WARWICKSHIRE PARTNERSHIP NHS TRUST",null,null,null,"RJ6","HARROGATE AND DISTRICT NHS FOUNDATION TRUST"]
[null,null,null,null,null,null,null,null,null,null,null,null,null,null,"RLQ","WYE VALLEY NHS TRUST",null,null,null,null,null,null,null,"Q53","RLQ","WYE VALLEY NHS TRUST",null,null,null,"RJ7","HEART OF ENGLAND NHS FOUNDATION TRUST"]
[null,null,null,null,null,null,null,null,null,null,null,null,null,null,"RJC","SOUTH WARWICKSHIRE NHS FOUNDATION TRUST",null,null,null,null,null,null,null,"Q53","RJC","SOUTH WARWICKSHIRE NHS FOUNDATION TRUST",null,null,null,"RJ8","HERTFORDSHIRE COMMUNITY NHS TRUST"]
[null,null,null,null,null,null,null,null,null,null,null,null,null,null,"RKB","UNIVERSITY HOSPITALS COVENTRY AND WARWICKSHIRE NHS TRUST",null,null,null,null,null,null,null,"Q53","RKB","UNIVERSITY HOSPITALS COVENTRY AND WARWICKSHIRE NHS TRUST",null,null,null,"RJC","HERTFORDSHIRE PARTNERSHIP UNIVERSITY NHS FOUNDATION TRUST"]
[null,null,null,null,null,null,null,null,null,null,null,null,null,null,"RWP","WORCESTERSHIRE ACUTE HOSPITALS NHS TRUST",null,null,null,null,null,null,null,"Q53","RWP","WORCESTERSHIRE ACUTE HOSPITALS NHS TRUST",null,null,null,"RJE","HINCHINGBROOKE HEALTH CARE NHS TRUST"]
[null,null,null,null,null,null,null,null,null,null,null,null,null,null,"RLT","GEORGE ELIOT HOSPITAL NHS TRUST",null,null,null,null,null,null,null,"Q53","RLT","GEORGE ELIOT HOSPITAL NHS TRUST",null,null,null,"RJF","HOMERTON UNIVERSITY HOSPITAL NHS FOUNDATION TRUST"]
[null,null,null,null,null,null,null,null,null,null,null,null,null,null,"RXT","BIRMINGHAM AND SOLIHULL MENTAL HEALTH NHS FOUNDATION TRUST",null,null,null,null,null,null,null,"Q54","RXT","BIRMINGHAM AND SOLIHULL MENTAL HEALTH NHS FOUNDATION TRUST",null,null,null,"RJL","HOUNSLOW AND RICHMOND COMMUNITY HEALTHCARE NHS TRUST"]
[null,null,null,null,null,null,null,null,null,null,null,null,null,null,"RYK","DUDLEY AND WALSALL MENTAL HEALTH PARTNERSHIP NHS TRUST",null,null,null,null,null,null,null,"Q54","RYK","DUDLEY AND WALSALL MENTAL HEALTH PARTNERSHIP NHS TRUST",null,null,null,"RJN","HULL AND EAST YORKSHIRE HOSPITALS NHS TRUST"]
[null,null,null,null,null,null,null,null,null,null,null,null,null,null,"RYA","WEST MIDLANDS AMBULANCE SERVICE NHS FOUNDATION TRUST",null,null,null,null,null,null,null,"Q54","RYA","WEST MIDLANDS AMBULANCE SERVICE NHS FOUNDATION TRUST",null,null,null,"RJR","HUMBER NHS FOUNDATION TRUST"]
[null,null,null,null,null,null,null,null,null,null,null,null,null,null,"RRK","UNIVERSITY HOSPITALS BIRMINGHAM NHS FOUNDATION TRUST",null,null,null,null,null,null,null,"Q54","RRK","UNIVERSITY HOSPITALS BIRMINGHAM NHS FOUNDATION TRUST",null,null,null,"RJX","IMPERIAL COLLEGE HEALTHCARE NHS TRUST"]
[null,null,null,null,null,null,null,null,null,null,null,null,null,null,"RNA","THE DUDLEY GROUP NHS FOUNDATION TRUST",null,null,null,null,null,null,null,"Q54","RNA","THE DUDLEY GROUP NHS FOUNDATION TRUST",null,null,null,"RJZ","IPSWICH HOSPITAL NHS TRUST"]
[null,null,null,null,null,null,null,null,null,null,null,null,null,null,"RLU","BIRMINGHAM WOMEN'S NHS FOUNDATION TRUST",null,null,null,null,null,null,null,"Q54","RLU","BIRMINGHAM WOMEN'S NHS FOUNDATION TRUST",null,null,null,"RK5","ISLE OF WIGHT NHS TRUST"]
[null,null,null,null,null,null,null,null,null,null,null,null,null,null,"RR1","HEART OF ENGLAND NHS FOUNDATION TRUST",null,null,null,null,null,null,null,"Q54","RR1","HEART OF ENGLAND NHS FOUNDATION TRUST",null,null,null,"RK9","JAMES PAGET UNIVERSITY HOSPITALS NHS FOUNDATION TRUST"]
[null,null,null,null,null,null,null,null,null,null,null,null,null,null,"RRJ","THE ROYAL ORTHOPAEDIC HOSPITAL NHS FOUNDATION TRUST",null,null,null,null,null,null,null,"Q54","RRJ","THE ROYAL ORTHOPAEDIC HOSPITAL NHS FOUNDATION TRUST",null,null,null,"RKB","KENT AND MEDWAY NHS AND SOCIAL CARE PARTNERSHIP TRUST"]
[null,null,null,null,null,null,null,null,null,null,null,null,null,null,"RL4","THE ROYAL WOLVERHAMPTON NHS TRUST",null,null,null,null,null,null,null,"Q54","RL4","THE ROYAL WOLVERHAMPTON NHS TRUST",null,null,null,"RKE","KENT COMMUNITY HEALTH NHS FOUNDATION TRUST"]
[null,null,null,null,null,null,null,null,null,null,null,null,null,null,"RXK","SANDWELL AND WEST BIRMINGHAM HOSPITALS NHS TRUST",null,null,null,null,null,null,null,"Q54","RXK","SANDWELL AND WEST BIRMINGHAM HOSPITALS NHS TRUST",null,null,null,"RKL","KETTERING GENERAL HOSPITAL NHS FOUNDATION TRUST"]
[null,null,null,null,null,null,null,null,null,null,null,null,null,null,"TAJ","BLACK COUNTRY PARTNERSHIP NHS FOUNDATION TRUST",null,null,null,null,null,null,null,"Q54","TAJ","BLACK COUNTRY PARTNERSHIP NHS FOUNDATION TRUST",null,null,null,"RL1","KING'S COLLEGE HOSPITAL NHS FOUNDATION TRUST"]
[null,null,null,null,null,null,null,null,null,null,null,null,null,null,"RBK","WALSALL HEALTHCARE NHS TRUST",null,null,null,null,null,null,null,"Q54","RBK","WALSALL HEALTHCARE NHS TRUST",null,null,null,"RL4","KINGSTON HOSPITAL NHS FOUNDATION TRUST"]
[null,null,null,null,null,null,null,null,null,null,null,null,null,null,"RQ3","BIRMINGHAM CHILDREN'S HOSPITAL NHS FOUNDATION TRUST",null,null,null,null,null,null,null,"Q54","RQ3","BIRMINGHAM CHILDREN'S HOSPITAL NHS FOUNDATION TRUST",null,null,null,"RLN","LANCASHIRE CARE NHS FOUNDATION TRUST"]
[null,null,null,null,null,null,null,null,null,null,null,null,null,null,"RYW","BIRMINGHAM COMMUNITY HEALTHCARE NHS TRUST",null,null,null,null,null,null,null,"Q54","RYW","BIRMINGHAM COMMUNITY HEALTHCARE NHS TRUST",null,null,null,"RLQ","LANCASHIRE TEACHING HOSPITALS NHS FOUNDATION TRUST"]
[null,null,null,null,null,null,null,null,null,null,null,null,null,null,"RX9","EAST MIDLANDS AMBULANCE SERVICE NHS TRUST",null,null,null,null,null,null,null,"Q55","RX9","EAST MIDLANDS AMBULANCE SERVICE NHS TRUST",null,null,null,"RLT","LEEDS AND YORK PARTNERSHIP NHS FOUNDATION TRUST"]
[null,null,null,null,null,null,null,null,null,null,null,null,null,null,"RK5","SHERWOOD FOREST HOSPITALS NHS FOUNDATION TRUST",null,null,null,null,null,null,null,"Q55","RK5","SHERWOOD FOREST HOSPITALS NHS FOUNDATION TRUST",null,null,null,"RLU","LEEDS COMMUNITY HEALTHCARE NHS TRUST"]
[null,null,null,null,null,null,null,null,null,null,null,null,null,null,"RY8","DERBYSHIRE COMMUNITY HEALTH SERVICES NHS FOUNDATION TRUST",null,null,null,null,null,null,null,"Q55","RY8","DERBYSHIRE COMMUNITY HEALTH SERVICES NHS FOUNDATION TRUST",null,null,null,"RLY","LEEDS TEACHING HOSPITALS NHS TRUST"]
[null,null,null,null,null,null,null,null,null,null,null,null,null,null,"RX1","NOTTINGHAM UNIVERSITY HOSPITALS NHS TRUST",null,null,null,null,null,null,null,"Q55","RX1","NOTTINGHAM UNIVERSITY HOSPITALS NHS TRUST",null,null,null,"RM1","LEICESTERSHIRE PARTNERSHIP NHS TRUST"]
[null,null,null,null,null,null,null,null,null,null,null,null,null,null,"RXM","DERBYSHIRE HEALTHCARE NHS FOUNDATION TRUST",null,null,null,null,null,null,null,"Q55","RXM","DERBYSHIRE HEALTHCARE NHS FOUNDATION TRUST",null,null,null,"RM2","LEWISHAM AND GREENWICH NHS TRUST"]
[null,null,null,null,null,null,null,null,null,null,null,null,null,null,"RTG","DERBY TEACHING HOSPITALS NHS FOUNDATION TRUST",null,null,null,null,null,null,null,"Q55","RTG","DERBY TEACHING HOSPITALS NHS FOUNDATION TRUST",null,null,null,"RM3","LINCOLNSHIRE COMMUNITY HEALTH SERVICES NHS TRUST"]
[null,null,null,null,null,null,null,null,null,null,null,null,null,null,"RFS","CHESTERFIELD ROYAL HOSPITAL NHS FOUNDATION TRUST",null,null,null,null,null,null,null,"Q55","RFS","CHESTERFIELD ROYAL HOSPITAL NHS FOUNDATION TRUST",null,null,null,"RMC","LINCOLNSHIRE PARTNERSHIP NHS FOUNDATION TRUST"]
[null,null,null,null,null,null,null,null,null,null,null,null,null,null,"RHA","NOTTINGHAMSHIRE HEALTHCARE NHS FOUNDATION TRUST",null,null,null,null,null,null,null,"Q55","RHA","NOTTINGHAMSHIRE HEALTHCARE NHS FOUNDATION TRUST",null,null,null,"RMP","LIVERPOOL COMMUNITY HEALTH NHS TRUST"]
[null,null,null,null,null,null,null,null,null,null,null,null,null,null,"RCX","THE QUEEN ELIZABETH HOSPITAL, KING'S LYNN, NHS FOUNDATION TRUST",null,null,null,null,null,null,null,"Q56","RCX","THE QUEEN ELIZABETH HOSPITAL, KING'S LYNN, NHS FOUNDATION TRUST",null,null,null,"RMY","LIVERPOOL HEART AND CHEST HOSPITAL NHS FOUNDATION TRUST"]
[null,null,null,null,null,null,null,null,null,null,null,null,null,null,"RGM","PAPWORTH HOSPITAL NHS FOUNDATION TRUST",null,null,null,null,null,null,null,"Q56","RGM","PAPWORTH HOSPITAL NHS FOUNDATION TRUST",null,null,null,"RN3","LIVERPOOL WOMEN'S NHS FOUNDATION TRUST"]
[null,null,null,null,null,null,null,null,null,null,null,null,null,null,"RGN","PETERBOROUGH AND STAMFORD HOSPITALS NHS FOUNDATION TRUST",null,null,null,null,null,null,null,"Q56","RGN","PETERBOROUGH AND STAMFORD HOSPITALS NHS FOUNDATION TRUST",null,null,null,"RN5","LONDON AMBULANCE SERVICE NHS TRUST"]
[null,null,null,null,null,null,null,null,null,null,null,null,null,null,"RGP","JAMES PAGET UNIVERSITY HOSPITALS NHS FOUNDATION TRUST",null,null,null,null,null,null,null,"Q56","RGP","JAMES PAGET UNIVERSITY HOSPITALS NHS FOUNDATION TRUST",null,null,null,"RN7","LONDON NORTH WEST HEALTHCARE NHS TRUST"]
[null,null,null,null,null,null,null,null,null,null,null,null,null,null,"RMY","NORFOLK AND SUFFOLK NHS FOUNDATION TRUST",null,null,null,null,null,null,null,"Q56","RMY","NORFOLK AND SUFFOLK NHS FOUNDATION TRUST",null,null,null,"RNA","LUTON AND DUNSTABLE UNIVERSITY HOSPITAL NHS FOUNDATION TRUST"]
[null,null,null,null,null,null,null,null,null,null,null,null,null,null,"RY3","NORFOLK COMMUNITY HEALTH AND CARE NHS TRUST",null,null,null,null,null,null,null,"Q56","RY3","NORFOLK COMMUNITY HEALTH AND CARE NHS TRUST",null,null,null,"RNK","MAIDSTONE AND TUNBRIDGE WELLS NHS TRUST"]
[null,null,null,null,null,null,null,null,null,null,null,null,null,null,"RYV","CAMBRIDGESHIRE COMMUNITY SERVICES NHS TRUST",null,null,null,null,null,null,null,"Q56","RYV","CAMBRIDGESHIRE COMMUNITY SERVICES NHS TRUST",null,null,null,"RNL","MANCHESTER MENTAL HEALTH AND SOCIAL CARE TRUST"]
[null,null,null,null,null,null,null,null,null,null,null,null,null,null,"RGQ","IPSWICH HOSPITAL NHS TRUST",null,null,null,null,null,null,null,"Q56","RGQ","IPSWICH HOSPITAL NHS TRUST",null,null,null,"RNN","MEDWAY NHS FOUNDATION TRUST"]
[null,null,null,null,null,null,null,null,null,null,null,null,null,null,"RT1","CAMBRIDGESHIRE AND PETERBOROUGH NHS FOUNDATION TRUST",null,null,null,null,null,null,null,"Q56","RT1","CAMBRIDGESHIRE AND PETERBOROUGH NHS FOUNDATION TRUST",null,null,null,"RNQ","MERSEY CARE NHS TRUST"]
[null,null,null,null,null,null,null,null,null,null,null,null,null,null,"RQQ","HINCHINGBROOKE HEALTH CARE NHS TRUST",null,null,null,null,null,null,null,"Q56","RQQ","HINCHINGBROOKE HEALTH CARE NHS TRUST",null,null,null,"RNS","MID CHESHIRE HOSPITALS NHS FOUNDATION TRUST"]
[null,null,null,null,null,null,null,null,null,null,null,null,null,null,"RM1","NORFOLK AND NORWICH UNIVERSITY HOSPITALS NHS FOUNDATION TRUST",null,null,null,null,null,null,null,"Q56","RM1","NORFOLK AND NORWICH UNIVERSITY HOSPITALS NHS FOUNDATION TRUST",null,null,null,"RNU","MID ESSEX HOSPITAL SERVICES NHS TRUST"]
[null,null,null,null,null,null,null,null,null,null,null,null,null,null,"RYC","EAST OF ENGLAND AMBULANCE SERVICE NHS TRUST",null,null,null,null,null,null,null,"Q56","RYC","EAST OF ENGLAND AMBULANCE SERVICE NHS TRUST",null,null,null,"RNZ","MID YORKSHIRE HOSPITALS NHS TRUST"]
[null,null,null,null,null,null,null,null,null,null,null,null,null,null,"RGR","WEST SUFFOLK NHS FOUNDATION TRUST",null,null,null,null,null,null,null,"Q56","RGR","WEST SUFFOLK NHS FOUNDATION TRUST",null,null,null,"RP1","MILTON KEYNES HOSPITAL NHS FOUNDATION TRUST"]
[null,null,null,null,null,null,null,null,null,null,null,null,null,null,"RGT","CAMBRIDGE UNIVERSITY HOSPITALS NHS FOUNDATION TRUST",null,null,null,null,null,null,null,"Q56","RGT","CAMBRIDGE UNIVERSITY HOSPITALS NHS FOUNDATION TRUST",null,null,null,"RP4","MOORFIELDS EYE HOSPITAL NHS FOUNDATION TRUST"]
[null,null,null,null,null,null,null,null,null,null,null,null,null,null,"RAJ","SOUTHEND UNIVERSITY HOSPITAL NHS FOUNDATION TRUST",null,null,null,null,null,null,null,"Q57","RAJ","SOUTHEND UNIVERSITY HOSPITAL NHS FOUNDATION TRUST",null,null,null,"RP5","NORFOLK AND NORWICH UNIVERSITY HOSPITALS NHS FOUNDATION TRUST"]
[null,null,null,null,null,null,null,null,null,null,null,null,null,null,"RDE","COLCHESTER HOSPITAL UNIVERSITY NHS FOUNDATION TRUST",null,null,null,null,null,null,null,"Q57","RDE","COLCHESTER HOSPITAL UNIVERSITY NHS FOUNDATION TRUST",null,null,null,"RP6","NORFOLK AND SUFFOLK NHS FOUNDATION TRUST"]
[null,null,null,null,null,null,null,null,null,null,null,null,null,null,"RQ8","MID ESSEX HOSPITAL SERVICES NHS TRUST",null,null,null,null,null,null,null,"Q57","RQ8","MID ESSEX HOSPITAL SERVICES NHS TRUST",null,null,null,"RP7","NORFOLK COMMUNITY HEALTH AND CARE NHS TRUST"]
[null,null,null,null,null,null,null,null,null,null,null,null,null,null,"RDD","BASILDON AND THURROCK UNIVERSITY HOSPITALS NHS FOUNDATION TRUST",null,null,null,null,null,null,null,"Q57","RDD","BASILDON AND THURROCK UNIVERSITY HOSPITALS NHS FOUNDATION TRUST",null,null,null,"RPA","NORTH BRISTOL NHS TRUST"]
[null,null,null,null,null,null,null,null,null,null,null,null,null,null,"RQW","THE PRINCESS ALEXANDRA HOSPITAL NHS TRUST",null,null,null,null,null,null,null,"Q57","RQW","THE PRINCESS ALEXANDRA HOSPITAL NHS TRUST",null,null,null,"RPC","NORTH CUMBRIA UNIVERSITY HOSPITALS NHS TRUST"]
[null,null,null,null,null,null,null,null,null,null,null,null,null,null,"RWN","SOUTH ESSEX PARTNERSHIP UNIVERSITY NHS FOUNDATION TRUST",null,null,null,null,null,null,null,"Q57","RWN","SOUTH ESSEX PARTNERSHIP UNIVERSITY NHS FOUNDATION TRUST",null,null,null,"RPG","NORTH EAST AMBULANCE SERVICE NHS FOUNDATION TRUST"]
[null,null,null,null,null,null,null,null,null,null,null,null,null,null,"RRD","NORTH ESSEX PARTNERSHIP UNIVERSITY NHS FOUNDATION TRUST",null,null,null,null,null,null,null,"Q57","RRD","NORTH ESSEX PARTNERSHIP UNIVERSITY NHS FOUNDATION TRUST",null,null,null,"RPY","NORTH EAST LONDON NHS FOUNDATION TRUST"]
[null,null,null,null,null,null,null,null,null,null,null,null,null,null,"RWR","HERTFORDSHIRE PARTNERSHIP UNIVERSITY NHS FOUNDATION TRUST",null,null,null,null,null,null,null,"Q58","RWR","HERTFORDSHIRE PARTNERSHIP UNIVERSITY NHS FOUNDATION TRUST",null,null,null,"RQ3","NORTH ESSEX PARTNERSHIP UNIVERSITY NHS FOUNDATION TRUST"]
[null,null,null,null,null,null,null,null,null,null,null,null,null,null,"RD8","MILTON KEYNES HOSPITAL NHS FOUNDATION TRUST",null,null,null,null,null,null,null,"Q58","RD8","MILTON KEYNES HOSPITAL NHS FOUNDATION TRUST",null,null,null,"RQ6","NORTH MIDDLESEX UNIVERSITY HOSPITAL NHS TRUST"]
[null,null,null,null,null,null,null,null,null,null,null,null,null,null,"RNS","NORTHAMPTON GENERAL HOSPITAL NHS TRUST",null,null,null,null,null,null,null,"Q58","RNS","NORTHAMPTON GENERAL HOSPITAL NHS TRUST",null,null,null,"RQ8","NORTH STAFFORDSHIRE COMBINED HEALTHCARE NHS TRUST"]
[null,null,null,null,null,null,null,null,null,null,null,null,null,null,"RWG","WEST HERTFORDSHIRE HOSPITALS NHS TRUST",null,null,null,null,null,null,null,"Q58","RWG","WEST HERTFORDSHIRE HOSPITALS NHS TRUST",null,null,null,"RQM","NORTH TEES AND HARTLEPOOL NHS FOUNDATION TRUST"]
[null,null,null,null,null,null,null,null,null,null,null,null,null,null,"RNQ","KETTERING GENERAL HOSPITAL NHS FOUNDATION TRUST",null,null,null,null,null,null,null,"Q58","RNQ","KETTERING GENERAL HOSPITAL NHS FOUNDATION TRUST",null,null,null,"RQQ","NORTH WEST AMBULANCE SERVICE NHS TRUST"]
[null,null,null,null,null,null,null,null,null,null,null,null,null,null,"RY4","HERTFORDSHIRE COMMUNITY NHS TRUST",null,null,null,null,null,null,null,"Q58","RY4","HERTFORDSHIRE COMMUNITY NHS TRUST",null,null,null,"RQW","NORTHAMPTON GENERAL HOSPITAL NHS TRUST"]
[null,null,null,null,null,null,null,null,null,null,null,null,null,null,"RP1","NORTHAMPTONSHIRE HEALTHCARE NHS FOUNDATION TRUST",null,null,null,null,null,null,null,"Q58","RP1","NORTHAMPTONSHIRE HEALTHCARE NHS FOUNDATION TRUST",null,null,null,"RQX","NORTHAMPTONSHIRE HEALTHCARE NHS FOUNDATION TRUST"]
[null,null,null,null,null,null,null,null,null,null,null,null,null,null,"RC1","BEDFORD HOSPITAL NHS TRUST",null,null,null,null,null,null,null,"Q58","RC1","BEDFORD HOSPITAL NHS TRUST",null,null,null,"RQY","NORTHERN DEVON HEALTHCARE NHS TRUST"]
[null,null,null,null,null,null,null,null,null,null,null,null,null,null,"RC9","LUTON AND DUNSTABLE UNIVERSITY HOSPITAL NHS FOUNDATION TRUST",null,null,null,null,null,null,null,"Q58","RC9","LUTON AND DUNSTABLE UNIVERSITY HOSPITAL NHS FOUNDATION TRUST",null,null,null,"RR1","NORTHERN LINCOLNSHIRE AND GOOLE NHS FOUNDATION TRUST"]
[null,null,null,null,null,null,null,null,null,null,null,null,null,null,"RWH","EAST AND NORTH HERTFORDSHIRE NHS TRUST",null,null,null,null,null,null,null,"Q58","RWH","EAST AND NORTH HERTFORDSHIRE NHS TRUST",null,null,null,"RR7","NORTHUMBERLAND, TYNE AND WEAR NHS FOUNDATION TRUST"]
[null,null,null,null,null,null,null,null,null,null,null,null,null,null,"RY5","LINCOLNSHIRE COMMUNITY HEALTH SERVICES NHS TRUST",null,null,null,null,null,null,null,"Q59","RY5","LINCOLNSHIRE COMMUNITY HEALTH SERVICES NHS TRUST",null,null,null,"RR8","NORTHUMBRIA HEALTHCARE NHS FOUNDATION TRUST"]
[null,null,null,null,null,null,null,null,null,null,null,null,null,null,"RT5","LEICESTERSHIRE PARTNERSHIP NHS TRUST",null,null,null,null,null,null,null,"Q59","RT5","LEICESTERSHIRE PARTNERSHIP NHS TRUST",null,null,null,"RRD","NOTTINGHAM UNIVERSITY HOSPITALS NHS TRUST"]
[null,null,null,null,null,null,null,null,null,null,null,null,null,null,"RP7","LINCOLNSHIRE PARTNERSHIP NHS FOUNDATION TRUST",null,null,null,null,null,null,null,"Q59","RP7","LINCOLNSHIRE PARTNERSHIP NHS FOUNDATION TRUST",null,null,null,"RRE","NOTTINGHAMSHIRE HEALTHCARE NHS FOUNDATION TRUST"]
[null,null,null,null,null,null,null,null,null,null,null,null,null,null,"RWE","UNIVERSITY HOSPITALS OF LEICESTER NHS TRUST",null,null,null,null,null,null,null,"Q59","RWE","UNIVERSITY HOSPITALS OF LEICESTER NHS TRUST",null,null,null,"RRF","OXFORD HEALTH NHS FOUNDATION TRUST"]
[null,null,null,null,null,null,null,null,null,null,null,null,null,null,"RWD","UNITED LINCOLNSHIRE HOSPITALS NHS TRUST",null,null,null,null,null,null,null,"Q59","RWD","UNITED LINCOLNSHIRE HOSPITALS NHS TRUST",null,null,null,"RRJ","OXFORD UNIVERSITY HOSPITALS NHS TRUST"]
[null,null,null,null,null,null,null,null,null,null,null,null,null,null,"RXW","SHREWSBURY AND TELFORD HOSPITAL NHS TRUST",null,null,null,null,null,null,null,"Q60","RXW","SHREWSBURY AND TELFORD HOSPITAL NHS TRUST",null,null,null,"RRK","OXLEAS NHS FOUNDATION TRUST"]
[null,null,null,null,null,null,null,null,null,null,null,null,null,null,"RJE","UNIVERSITY HOSPITALS OF NORTH MIDLANDS NHS TRUST",null,null,null,null,null,null,null,"Q60","RJE","UNIVERSITY HOSPITALS OF NORTH MIDLANDS NHS TRUST",null,null,null,"RRP","PAPWORTH HOSPITAL NHS FOUNDATION TRUST"]
[null,null,null,null,null,null,null,null,null,null,null,null,null,null,"RL1","THE ROBERT JONES AND AGNES HUNT ORTHOPAEDIC HOSPITAL NHS FOUNDATION TRUST",null,null,null,null,null,null,null,"Q60","RL1","THE ROBERT JONES AND AGNES HUNT ORTHOPAEDIC HOSPITAL NHS FOUNDATION TRUST",null,null,null,"RRU","PENNINE ACUTE HOSPITALS NHS TRUST"]
[null,null,null,null,null,null,null,null,null,null,null,null,null,null,"RLY","NORTH STAFFORDSHIRE COMBINED HEALTHCARE NHS TRUST",null,null,null,null,null,null,null,"Q60","RLY","NORTH STAFFORDSHIRE COMBINED HEALTHCARE NHS TRUST",null,null,null,"RRV","PENNINE CARE NHS FOUNDATION TRUST"]
[null,null,null,null,null,null,null,null,null,null,null,null,null,null,"RRE","SOUTH STAFFORDSHIRE AND SHROPSHIRE HEALTHCARE NHS FOUNDATION TRUST",null,null,null,null,null,null,null,"Q60","RRE","SOUTH STAFFORDSHIRE AND SHROPSHIRE HEALTHCARE NHS FOUNDATION TRUST",null,null,null,"RT1","PETERBOROUGH AND STAMFORD HOSPITALS NHS FOUNDATION TRUST"]
[null,null,null,null,null,null,null,null,null,null,null,null,null,null,"R1D","SHROPSHIRE COMMUNITY HEALTH NHS TRUST",null,null,null,null,null,null,null,"Q60","R1D","SHROPSHIRE COMMUNITY HEALTH NHS TRUST",null,null,null,"RT2","PLYMOUTH HOSPITALS NHS TRUST"]
[null,null,null,null,null,null,null,null,null,null,null,null,null,null,"RJF","BURTON HOSPITALS NHS FOUNDATION TRUST",null,null,null,null,null,null,null,"Q60","RJF","BURTON HOSPITALS NHS FOUNDATION TRUST",null,null,null,"RT3","POOLE HOSPITAL NHS FOUNDATION TRUST"]
[null,null,null,null,null,null,null,null,null,null,null,null,null,null,"R1E","STAFFORDSHIRE AND STOKE ON TRENT PARTNERSHIP NHS TRUST",null,null,null,null,null,null,null,"Q60","R1E","STAFFORDSHIRE AND STOKE ON TRENT PARTNERSHIP NHS TRUST",null,null,null,"RT5","PORTSMOUTH HOSPITALS NHS TRUST"]
[null,null,null,null,null,null,null,null,null,null,null,null,null,null,"RTQ","2GETHER NHS FOUNDATION TRUST",null,null,null,null,null,null,null,"Q64","RTQ","2GETHER NHS FOUNDATION TRUST",null,null,null,"RTD","QUEEN VICTORIA HOSPITAL NHS FOUNDATION TRUST"]
[null,null,null,null,null,null,null,null,null,null,null,null,null,null,"R1J","GLOUCESTERSHIRE CARE SERVICES NHS TRUST",null,null,null,null,null,null,null,"Q64","R1J","GLOUCESTERSHIRE CARE SERVICES NHS TRUST",null,null,null,"RTE","ROTHERHAM DONCASTER AND SOUTH HUMBER NHS FOUNDATION TRUST"]
[null,null,null,null,null,null,null,null,null,null,null,null,null,null,"RN3","GREAT WESTERN HOSPITALS NHS FOUNDATION TRUST",null,null,null,null,null,null,null,"Q64","RN3","GREAT WESTERN HOSPITALS NHS FOUNDATION TRUST",null,null,null,"RTF","ROYAL BERKSHIRE NHS FOUNDATION TRUST"]
[null,null,null,null,null,null,null,null,null,null,null,null,null,null,"RTE","GLOUCESTERSHIRE HOSPITALS NHS FOUNDATION TRUST",null,null,null,null,null,null,null,"Q64","RTE","GLOUCESTERSHIRE HOSPITALS NHS FOUNDATION TRUST",null,null,null,"RTG","ROYAL BROMPTON & HAREFIELD NHS FOUNDATION TRUST"]
[null,null,null,null,null,null,null,null,null,null,null,null,null,null,"RD1","ROYAL UNITED HOSPITALS BATH NHS FOUNDATION TRUST",null,null,null,null,null,null,null,"Q64","RD1","ROYAL UNITED HOSPITALS BATH NHS FOUNDATION TRUST",null,null,null,"RTH","ROYAL CORNWALL HOSPITALS NHS TRUST"]
[null,null,null,null,null,null,null,null,null,null,null,null,null,null,"RVN","AVON AND WILTSHIRE MENTAL HEALTH PARTNERSHIP NHS TRUST",null,null,null,null,null,null,null,"Q64","RVN","AVON AND WILTSHIRE MENTAL HEALTH PARTNERSHIP NHS TRUST",null,null,null,"RTK","ROYAL DEVON AND EXETER NHS FOUNDATION TRUST"]
[null,null,null,null,null,null,null,null,null,null,null,null,null,null,"RNZ","SALISBURY NHS FOUNDATION TRUST",null,null,null,null,null,null,null,"Q64","RNZ","SALISBURY NHS FOUNDATION TRUST",null,null,null,"RTP","ROYAL FREE LONDON NHS FOUNDATION TRUST"]
[null,null,null,null,null,null,null,null,null,null,null,null,null,null,"RVJ","NORTH BRISTOL NHS TRUST",null,null,null,null,null,null,null,"Q65","RVJ","NORTH BRISTOL NHS TRUST",null,null,null,"RTQ","ROYAL LIVERPOOL AND BROADGREEN UNIVERSITY HOSPITALS NHS TRUST"]
[null,null,null,null,null,null,null,null,null,null,null,null,null,null,"RA4","YEOVIL DISTRICT HOSPITAL NHS FOUNDATION TRUST",null,null,null,null,null,null,null,"Q65","RA4","YEOVIL DISTRICT HOSPITAL NHS FOUNDATION TRUST",null,null,null,"RTR","ROYAL NATIONAL ORTHOPAEDIC HOSPITAL NHS TRUST"]
[null,null,null,null,null,null,null,null,null,null,null,null,null,null,"RH5","SOMERSET PARTNERSHIP NHS FOUNDATION TRUST",null,null,null,null,null,null,null,"Q65","RH5","SOMERSET PARTNERSHIP NHS FOUNDATION TRUST",null,null,null,"RTV","ROYAL SURREY COUNTY HOSPITAL NHS FOUNDATION TRUST"]
[null,null,null,null,null,null,null,null,null,null,null,null,null,null,"RBA","TAUNTON AND SOMERSET NHS FOUNDATION TRUST",null,null,null,null,null,null,null,"Q65","RBA","TAUNTON AND SOMERSET NHS FOUNDATION TRUST",null,null,null,"RTX","ROYAL UNITED HOSPITALS BATH NHS FOUNDATION TRUST"]
[null,null,null,null,null,null,null,null,null,null,null,null,null,null,"RA3","WESTON AREA HEALTH NHS TRUST",null,null,null,null,null,null,null,"Q65","RA3","WESTON AREA HEALTH NHS TRUST",null,null,null,"RV3","SALFORD ROYAL NHS FOUNDATION TRUST"]
[null,null,null,null,null,null,null,null,null,null,null,null,null,null,"RA7","UNIVERSITY HOSPITALS BRISTOL NHS FOUNDATION TRUST",null,null,null,null,null,null,null,"Q65","RA7","UNIVERSITY HOSPITALS BRISTOL NHS FOUNDATION TRUST",null,null,null,"RV5","SALISBURY NHS FOUNDATION TRUST"]
[null,null,null,null,null,null,null,null,null,null,null,null,null,null,"RJ8","CORNWALL PARTNERSHIP NHS FOUNDATION TRUST",null,null,null,null,null,null,null,"Q66","RJ8","CORNWALL PARTNERSHIP NHS FOUNDATION TRUST",null,null,null,"RV9","SANDWELL AND WEST BIRMINGHAM HOSPITALS NHS TRUST"]
[null,null,null,null,null,null,null,null,null,null,null,null,null,null,"RYF","SOUTH WESTERN AMBULANCE SERVICE NHS FOUNDATION TRUST",null,null,null,null,null,null,null,"Q66","RYF","SOUTH WESTERN AMBULANCE SERVICE NHS FOUNDATION TRUST",null,null,null,"RVJ","SHEFFIELD CHILDREN'S NHS FOUNDATION TRUST"]
[null,null,null,null,null,null,null,null,null,null,null,null,null,null,"REF","ROYAL CORNWALL HOSPITALS NHS TRUST",null,null,null,null,null,null,null,"Q66","REF","ROYAL CORNWALL HOSPITALS NHS TRUST",null,null,null,"RVN","SHEFFIELD HEALTH & SOCIAL CARE NHS FOUNDATION TRUST"]
[null,null,null,null,null,null,null,null,null,null,null,null,null,null,"RBZ","NORTHERN DEVON HEALTHCARE NHS TRUST",null,null,null,null,null,null,null,"Q66","RBZ","NORTHERN DEVON HEALTHCARE NHS TRUST",null,null,null,"RVR","SHEFFIELD TEACHING HOSPITALS NHS FOUNDATION TRUST"]
[null,null,null,null,null,null,null,null,null,null,null,null,null,null,"RH8","ROYAL DEVON AND EXETER NHS FOUNDATION TRUST",null,null,null,null,null,null,null,"Q66","RH8","ROYAL DEVON AND EXETER NHS FOUNDATION TRUST",null,null,null,"RVV","SHERWOOD FOREST HOSPITALS NHS FOUNDATION TRUST"]
[null,null,null,null,null,null,null,null,null,null,null,null,null,null,"RK9","PLYMOUTH HOSPITALS NHS TRUST",null,null,null,null,null,null,null,"Q66","RK9","PLYMOUTH HOSPITALS NHS TRUST",null,null,null,"RVW","SHREWSBURY AND TELFORD HOSPITAL NHS TRUST"]
[null,null,null,null,null,null,null,null,null,null,null,null,null,null,"RWV","DEVON PARTNERSHIP NHS TRUST",null,null,null,null,null,null,null,"Q66","RWV","DEVON PARTNERSHIP NHS TRUST",null,null,null,"RVY","SHROPSHIRE COMMUNITY HEALTH NHS TRUST"]
[null,null,null,null,null,null,null,null,null,null,null,null,null,null,"R1G","TORBAY AND SOUTHERN DEVON HEALTH AND CARE NHS TRUST",null,null,null,null,null,null,null,"Q66","R1G","TORBAY AND SOUTHERN DEVON HEALTH AND CARE NHS TRUST",null,null,null,"RW1","SOLENT NHS TRUST"]
[null,null,null,null,null,null,null,null,null,null,null,null,null,null,"RA9","SOUTH DEVON HEALTHCARE NHS FOUNDATION TRUST",null,null,null,null,null,null,null,"Q66","RA9","SOUTH DEVON HEALTHCARE NHS FOUNDATION TRUST",null,null,null,"RW3","SOMERSET PARTNERSHIP NHS FOUNDATION TRUST"]
[null,null,null,null,null,null,null,null,null,null,null,null,null,null,"RN7","DARTFORD AND GRAVESHAM NHS TRUST",null,null,null,null,null,null,null,"Q67","RN7","DARTFORD AND GRAVESHAM NHS TRUST",null,null,null,"RW4","SOUTH CENTRAL AMBULANCE SERVICE NHS FOUNDATION TRUST"]
[null,null,null,null,null,null,null,null,null,null,null,null,null,null,"RPA","MEDWAY NHS FOUNDATION TRUST",null,null,null,null,null,null,null,"Q67","RPA","MEDWAY NHS FOUNDATION TRUST",null,null,null,"RW5","SOUTH DEVON HEALTHCARE NHS FOUNDATION TRUST"]
[null,null,null,null,null,null,null,null,null,null,null,null,null,null,"RYY","KENT COMMUNITY HEALTH NHS FOUNDATION TRUST",null,null,null,null,null,null,null,"Q67","RYY","KENT COMMUNITY HEALTH NHS FOUNDATION TRUST",null,null,null,"RW6","SOUTH EAST COAST AMBULANCE SERVICE NHS FOUNDATION TRUST"]
[null,null,null,null,null,null,null,null,null,null,null,null,null,null,"RXY","KENT AND MEDWAY NHS AND SOCIAL CARE PARTNERSHIP TRUST",null,null,null,null,null,null,null,"Q67","RXY","KENT AND MEDWAY NHS AND SOCIAL CARE PARTNERSHIP TRUST",null,null,null,"RWA","SOUTH ESSEX PARTNERSHIP UNIVERSITY NHS FOUNDATION TRUST"]
[null,null,null,null,null,null,null,null,null,null,null,null,null,null,"RWF","MAIDSTONE AND TUNBRIDGE WELLS NHS TRUST",null,null,null,null,null,null,null,"Q67","RWF","MAIDSTONE AND TUNBRIDGE WELLS NHS TRUST",null,null,null,"RWD","SOUTH LONDON AND MAUDSLEY NHS FOUNDATION TRUST"]
[null,null,null,null,null,null,null,null,null,null,null,null,null,null,"RVV","EAST KENT HOSPITALS UNIVERSITY NHS FOUNDATION TRUST",null,null,null,null,null,null,null,"Q67","RVV","EAST KENT HOSPITALS UNIVERSITY NHS FOUNDATION TRUST",null,null,null,"RWE","SOUTH STAFFORDSHIRE AND SHROPSHIRE HEALTHCARE NHS FOUNDATION TRUST"]
[null,null,null,null,null,null,null,null,null,null,null,null,null,null,"RPC","QUEEN VICTORIA HOSPITAL NHS FOUNDATION TRUST",null,null,null,null,null,null,null,"Q68","RPC","QUEEN VICTORIA HOSPITAL NHS FOUNDATION TRUST",null,null,null,"RWF","SOUTH TEES HOSPITALS NHS FOUNDATION TRUST"]
[null,null,null,null,null,null,null,null,null,null,null,null,null,null,"RA2","ROYAL SURREY COUNTY HOSPITAL NHS FOUNDATION TRUST",null,null,null,null,null,null,null,"Q68","RA2","ROYAL SURREY COUNTY HOSPITAL NHS FOUNDATION TRUST",null,null,null,"RWG","SOUTH TYNESIDE NHS FOUNDATION TRUST"]
[null,null,null,null,null,null,null,null,null,null,null,null,null,null,"RDR","SUSSEX COMMUNITY NHS TRUST",null,null,null,null,null,null,null,"Q68","RDR","SUSSEX COMMUNITY NHS TRUST",null,null,null,"RWH","SOUTH WARWICKSHIRE NHS FOUNDATION TRUST"]
[null,null,null,null,null,null,null,null,null,null,null,null,null,null,"RYD","SOUTH EAST COAST AMBULANCE SERVICE NHS FOUNDATION TRUST",null,null,null,null,null,null,null,"Q68","RYD","SOUTH EAST COAST AMBULANCE SERVICE NHS FOUNDATION TRUST",null,null,null,"RWJ","SOUTH WEST LONDON AND ST GEORGE'S MENTAL HEALTH NHS TRUST"]
[null,null,null,null,null,null,null,null,null,null,null,null,null,null,"RYR","WESTERN SUSSEX HOSPITALS NHS FOUNDATION TRUST",null,null,null,null,null,null,null,"Q68","RYR","WESTERN SUSSEX HOSPITALS NHS FOUNDATION TRUST",null,null,null,"RWK","SOUTH WEST YORKSHIRE PARTNERSHIP NHS FOUNDATION TRUST"]
[null,null,null,null,null,null,null,null,null,null,null,null,null,null,"RTP","SURREY AND SUSSEX HEALTHCARE NHS TRUST",null,null,null,null,null,null,null,"Q68","RTP","SURREY AND SUSSEX HEALTHCARE NHS TRUST",null,null,null,"RWN","SOUTH WESTERN AMBULANCE SERVICE NHS FOUNDATION TRUST"]
[null,null,null,null,null,null,null,null,null,null,null,null,null,null,"RTK","ASHFORD AND ST PETER'S HOSPITALS NHS FOUNDATION TRUST",null,null,null,null,null,null,null,"Q68","RTK","ASHFORD AND ST PETER'S HOSPITALS NHS FOUNDATION TRUST",null,null,null,"RWP","SOUTHEND UNIVERSITY HOSPITAL NHS FOUNDATION TRUST"]
[null,null,null,null,null,null,null,null,null,null,null,null,null,null,"RX2","SUSSEX PARTNERSHIP NHS FOUNDATION TRUST",null,null,null,null,null,null,null,"Q68","RX2","SUSSEX PARTNERSHIP NHS FOUNDATION TRUST",null,null,null,"RWR","SOUTHERN HEALTH NHS FOUNDATION TRUST"]
[null,null,null,null,null,null,null,null,null,null,null,null,null,null,"RXH","BRIGHTON AND SUSSEX UNIVERSITY HOSPITALS NHS TRUST",null,null,null,null,null,null,null,"Q68","RXH","BRIGHTON AND SUSSEX UNIVERSITY HOSPITALS NHS TRUST",null,null,null,"RWV","SOUTHPORT AND ORMSKIRK HOSPITAL NHS TRUST"]
[null,null,null,null,null,null,null,null,null,null,null,null,null,null,"RXX","SURREY AND BORDERS PARTNERSHIP NHS FOUNDATION TRUST",null,null,null,null,null,null,null,"Q68","RXX","SURREY AND BORDERS PARTNERSHIP NHS FOUNDATION TRUST",null,null,null,"RWW","ST GEORGE'S UNIVERSITY HOSPITALS NHS FOUNDATION TRUST"]
[null,null,null,null,null,null,null,null,null,null,null,null,null,null,"RXC","EAST SUSSEX HEALTHCARE NHS TRUST",null,null,null,null,null,null,null,"Q68","RXC","EAST SUSSEX HEALTHCARE NHS TRUST",null,null,null,"RWX","ST HELENS AND KNOWSLEY HOSPITALS NHS TRUST"]
[null,null,null,null,null,null,null,null,null,null,null,null,null,null,"RDU","FRIMLEY HEALTH NHS FOUNDATION TRUST",null,null,null,null,null,null,null,"Q68","RDU","FRIMLEY HEALTH NHS FOUNDATION TRUST",null,null,null,"RWY","STAFFORDSHIRE AND STOKE ON TRENT PARTNERSHIP NHS TRUST"]
[null,null,null,null,null,null,null,null,null,null,null,null,null,null,"RYE","SOUTH CENTRAL AMBULANCE SERVICE NHS FOUNDATION TRUST",null,null,null,null,null,null,null,"Q69","RYE","SOUTH CENTRAL AMBULANCE SERVICE NHS FOUNDATION TRUST",null,null,null,"RX1","STOCKPORT NHS FOUNDATION TRUST"]
[null,null,null,null,null,null,null,null,null,null,null,null,null,null,"RNU","OXFORD HEALTH NHS FOUNDATION TRUST",null,null,null,null,null,null,null,"Q69","RNU","OXFORD HEALTH NHS FOUNDATION TRUST",null,null,null,"RX2","SURREY AND BORDERS PARTNERSHIP NHS FOUNDATION TRUST"]
[null,null,null,null,null,null,null,null,null,null,null,null,null,null,"RXQ","BUCKINGHAMSHIRE HEALTHCARE NHS TRUST",null,null,null,null,null,null,null,"Q69","RXQ","BUCKINGHAMSHIRE HEALTHCARE NHS TRUST",null,null,null,"RX3","SURREY AND SUSSEX HEALTHCARE NHS TRUST"]
[null,null,null,null,null,null,null,null,null,null,null,null,null,null,"RHW","ROYAL BERKSHIRE NHS FOUNDATION TRUST",null,null,null,null,null,null,null,"Q69","RHW","ROYAL BERKSHIRE NHS FOUNDATION TRUST",null,null,null,"RX4","SUSSEX COMMUNITY NHS TRUST"]
[null,null,null,null,null,null,null,null,null,null,null,null,null,null,"RTH","OXFORD UNIVERSITY HOSPITALS NHS TRUST",null,null,null,null,null,null,null,"Q69","RTH","OXFORD UNIVERSITY HOSPITALS NHS TRUST",null,null,null,"RX6","SUSSEX PARTNERSHIP NHS FOUNDATION TRUST"]
[null,null,null,null,null,null,null,null,null,null,null,null,null,null,"RWX","BERKSHIRE HEALTHCARE NHS FOUNDATION TRUST",null,null,null,null,null,null,null,"Q69","RWX","BERKSHIRE HEALTHCARE NHS FOUNDATION TRUST",null,null,null,"RX7","TAMESIDE HOSPITAL NHS FOUNDATION TRUST"]
[null,null,null,null,null,null,null,null,null,null,null,null,null,null,"RHU","PORTSMOUTH HOSPITALS NHS TRUST",null,null,null,null,null,null,null,"Q70","RHU","PORTSMOUTH HOSPITALS NHS TRUST",null,null,null,"RX8","TAUNTON AND SOMERSET NHS FOUNDATION TRUST"]
[null,null,null,null,null,null,null,null,null,null,null,null,null,null,"RW1","SOUTHERN HEALTH NHS FOUNDATION TRUST",null,null,null,null,null,null,null,"Q70","RW1","SOUTHERN HEALTH NHS FOUNDATION TRUST",null,null,null,"RX9","TAVISTOCK AND PORTMAN NHS FOUNDATION TRUST"]
[null,null,null,null,null,null,null,null,null,null,null,null,null,null,"R1F","ISLE OF WIGHT NHS TRUST",null,null,null,null,null,null,null,"Q70","R1F","ISLE OF WIGHT NHS TRUST",null,null,null,"RXA","TEES, ESK AND WEAR VALLEYS NHS FOUNDATION TRUST"]
[null,null,null,null,null,null,null,null,null,null,null,null,null,null,"RBD","DORSET COUNTY HOSPITAL NHS FOUNDATION TRUST",null,null,null,null,null,null,null,"Q70","RBD","DORSET COUNTY HOSPITAL NHS FOUNDATION TRUST",null,null,null,"RXC","THE CHRISTIE NHS FOUNDATION TRUST"]
[null,null,null,null,null,null,null,null,null,null,null,null,null,null,"R1C","SOLENT NHS TRUST",null,null,null,null,null,null,null,"Q70","R1C","SOLENT NHS TRUST",null,null,null,"RXE","THE CLATTERBRIDGE CANCER CENTRE NHS FOUNDATION TRUST"]
[null,null,null,null,null,null,null,null,null,null,null,null,null,null,"RDY","DORSET HEALTHCARE UNIVERSITY NHS FOUNDATION TRUST",null,null,null,null,null,null,null,"Q70","RDY","DORSET HEALTHCARE UNIVERSITY NHS FOUNDATION TRUST",null,null,null,"RXF","THE DUDLEY GROUP NHS FOUNDATION TRUST"]
[null,null,null,null,null,null,null,null,null,null,null,null,null,null,"RN5","HAMPSHIRE HOSPITALS NHS FOUNDATION TRUST",null,null,null,null,null,null,null,"Q70","RN5","HAMPSHIRE HOSPITALS NHS FOUNDATION TRUST",null,null,null,"RXG","THE HILLINGDON HOSPITALS NHS FOUNDATION TRUST"]
[null,null,null,null,null,null,null,null,null,null,null,null,null,null,"RD3","POOLE HOSPITAL NHS FOUNDATION TRUST",null,null,null,null,null,null,null,"Q70","RD3","POOLE HOSPITAL NHS FOUNDATION TRUST",null,null,null,"RXH","THE NEWCASTLE UPON TYNE HOSPITALS NHS FOUNDATION TRUST"]
[null,null,null,null,null,null,null,null,null,null,null,null,null,null,"RDZ","THE ROYAL BOURNEMOUTH AND CHRISTCHURCH HOSPITALS NHS FOUNDATION TRUST",null,null,null,null,null,null,null,"Q70","RDZ","THE ROYAL BOURNEMOUTH AND CHRISTCHURCH HOSPITALS NHS FOUNDATION TRUST",null,null,null,"RXK","THE PRINCESS ALEXANDRA HOSPITAL NHS TRUST"]
[null,null,null,null,null,null,null,null,null,null,null,null,null,null,"RHM","UNIVERSITY HOSPITAL SOUTHAMPTON NHS FOUNDATION TRUST",null,null,null,null,null,null,null,"Q70","RHM","UNIVERSITY HOSPITAL SOUTHAMPTON NHS FOUNDATION TRUST",null,null,null,"RXL","THE QUEEN ELIZABETH HOSPITAL, KING'S LYNN, NHS FOUNDATION TRUST"]
[null,null,null,null,null,null,null,null,null,null,null,null,null,null,"R1K","LONDON NORTH WEST HEALTHCARE NHS TRUST",null,null,null,null,null,null,null,"Q71","R1K","LONDON NORTH WEST HEALTHCARE NHS TRUST",null,null,null,"RXM","THE ROBERT JONES AND AGNES HUNT ORTHOPAEDIC HOSPITAL NHS FOUNDATION TRUST"]
[null,null,null,null,null,null,null,null,null,null,null,null,null,null,"RAN","ROYAL NATIONAL ORTHOPAEDIC HOSPITAL NHS TRUST",null,null,null,null,null,null,null,"Q71","RAN","ROYAL NATIONAL ORTHOPAEDIC HOSPITAL NHS TRUST",null,null,null,"RXN","THE ROTHERHAM NHS FOUNDATION TRUST"]
[null,null,null,null,null,null,null,null,null,null,null,null,null,null,"RRV","UNIVERSITY COLLEGE LONDON HOSPITALS NHS FOUNDATION TRUST",null,null,null,null,null,null,null,"Q71","RRV","UNIVERSITY COLLEGE LONDON HOSPITALS NHS FOUNDATION TRUST",null,null,null,"RXP","THE ROYAL BOURNEMOUTH AND CHRISTCHURCH HOSPITALS NHS FOUNDATION TRUST"]
[null,null,null,null,null,null,null,null,null,null,null,null,null,null,"RYX","CENTRAL LONDON COMMUNITY HEALTHCARE NHS TRUST",null,null,null,null,null,null,null,"Q71","RYX","CENTRAL LONDON COMMUNITY HEALTHCARE NHS TRUST",null,null,null,"RXQ","THE ROYAL MARSDEN NHS FOUNDATION TRUST"]
[null,null,null,null,null,null,null,null,null,null,null,null,null,null,"RJ7","ST GEORGE'S UNIVERSITY HOSPITALS NHS FOUNDATION TRUST",null,null,null,null,null,null,null,"Q71","RJ7","ST GEORGE'S UNIVERSITY HOSPITALS NHS FOUNDATION TRUST",null,null,null,"RXR","THE ROYAL ORTHOPAEDIC HOSPITAL NHS FOUNDATION TRUST"]
[null,null,null,null,null,null,null,null,null,null,null,null,null,null,"RQX","HOMERTON UNIVERSITY HOSPITAL NHS FOUNDATION TRUST",null,null,null,null,null,null,null,"Q71","RQX","HOMERTON UNIVERSITY HOSPITAL NHS FOUNDATION TRUST",null,null,null,"RXT","THE ROYAL WOLVERHAMPTON NHS TRUST"]
[null,null,null,null,null,null,null,null,null,null,null,null,null,null,"RAT","NORTH EAST LONDON NHS FOUNDATION TRUST",null,null,null,null,null,null,null,"Q71","RAT","NORTH EAST LONDON NHS FOUNDATION TRUST",null,null,null,"RXV","THE WALTON CENTRE NHS FOUNDATION TRUST"]
[null,null,null,null,null,null,null,null,null,null,null,null,null,null,"RNK","TAVISTOCK AND PORTMAN NHS FOUNDATION TRUST",null,null,null,null,null,null,null,"Q71","RNK","TAVISTOCK AND PORTMAN NHS FOUNDATION TRUST",null,null,null,"RXW","THE WHITTINGTON HOSPITAL NHS TRUST"]
[null,null,null,null,null,null,null,null,null,null,null,null,null,null,"RYJ","IMPERIAL COLLEGE HEALTHCARE NHS TRUST",null,null,null,null,null,null,null,"Q71","RYJ","IMPERIAL COLLEGE HEALTHCARE NHS TRUST",null,null,null,"RXX","TORBAY AND SOUTHERN DEVON HEALTH AND CARE NHS TRUST"]
[null,null,null,null,null,null,null,null,null,null,null,null,null,null,"RF4","BARKING, HAVERING AND REDBRIDGE UNIVERSITY HOSPITALS NHS TRUST",null,null,null,null,null,null,null,"Q71","RF4","BARKING, HAVERING AND REDBRIDGE UNIVERSITY HOSPITALS NHS TRUST",null,null,null,"RXY","UNITED LINCOLNSHIRE HOSPITALS NHS TRUST"]
[null,null,null,null,null,null,null,null,null,null,null,null,null,null,"RJ1","GUY'S AND ST THOMAS' NHS FOUNDATION TRUST",null,null,null,null,null,null,null,"Q71","RJ1","GUY'S AND ST THOMAS' NHS FOUNDATION TRUST",null,null,null,"RY1","UNIVERSITY COLLEGE LONDON HOSPITALS NHS FOUNDATION TRUST"]
[null,null,null,null,null,null,null,null,null,null,null,null,null,null,"RWK","EAST LONDON NHS FOUNDATION TRUST",null,null,null,null,null,null,null,"Q71","RWK","EAST LONDON NHS FOUNDATION TRUST",null,null,null,"RY2","UNIVERSITY HOSPITAL OF SOUTH MANCHESTER NHS FOUNDATION TRUST"]
[null,null,null,null,null,null,null,null,null,null,null,null,null,null,"RFW","WEST MIDDLESEX UNIVERSITY HOSPITAL NHS TRUST",null,null,null,null,null,null,null,"Q71","RFW","WEST MIDDLESEX UNIVERSITY HOSPITAL NHS TRUST",null,null,null,"RY3","UNIVERSITY HOSPITAL SOUTHAMPTON NHS FOUNDATION TRUST"]
[null,null,null,null,null,null,null,null,null,null,null,null,null,null,"RPG","OXLEAS NHS FOUNDATION TRUST",null,null,null,null,null,null,null,"Q71","RPG","OXLEAS NHS FOUNDATION TRUST",null,null,null,"RY4","UNIVERSITY HOSPITALS BIRMINGHAM NHS FOUNDATION TRUST"]
[null,null,null,null,null,null,null,null,null,null,null,null,null,null,"RJZ","KING'S COLLEGE HOSPITAL NHS FOUNDATION TRUST",null,null,null,null,null,null,null,"Q71","RJZ","KING'S COLLEGE HOSPITAL NHS FOUNDATION TRUST",null,null,null,"RY5","UNIVERSITY HOSPITALS BRISTOL NHS FOUNDATION TRUST"]
[null,null,null,null,null,null,null,null,null,null,null,null,null,null,"RT3","ROYAL BROMPTON & HAREFIELD NHS FOUNDATION TRUST",null,null,null,null,null,null,null,"Q71","RT3","ROYAL BROMPTON & HAREFIELD NHS FOUNDATION TRUST",null,null,null,"RY6","UNIVERSITY HOSPITALS COVENTRY AND WARWICKSHIRE NHS TRUST"]
[null,null,null,null,null,null,null,null,null,null,null,null,null,null,"RJ2","LEWISHAM AND GREENWICH NHS TRUST",null,null,null,null,null,null,null,"Q71","RJ2","LEWISHAM AND GREENWICH NHS TRUST",null,null,null,"RY7","UNIVERSITY HOSPITALS OF LEICESTER NHS TRUST"]
[null,null,null,null,null,null,null,null,null,null,null,null,null,null,"RV3","CENTRAL AND NORTH WEST LONDON NHS FOUNDATION TRUST",null,null,null,null,null,null,null,"Q71","RV3","CENTRAL AND NORTH WEST LONDON NHS FOUNDATION TRUST",null,null,null,"RY8","UNIVERSITY HOSPITALS OF MORECAMBE BAY NHS FOUNDATION TRUST"]
[null,null,null,null,null,null,null,null,null,null,null,null,null,null,"RQM","CHELSEA AND WESTMINSTER HOSPITAL NHS FOUNDATION TRUST",null,null,null,null,null,null,null,"Q71","RQM","CHELSEA AND WESTMINSTER HOSPITAL NHS FOUNDATION TRUST",null,null,null,"RY9","UNIVERSITY HOSPITALS OF NORTH MIDLANDS NHS TRUST"]
[null,null,null,null,null,null,null,null,null,null,null,null,null,null,"RRU","LONDON AMBULANCE SERVICE NHS TRUST",null,null,null,null,null,null,null,"Q71","RRU","LONDON AMBULANCE SERVICE NHS TRUST",null,null,null,"RYA","WALSALL HEALTHCARE NHS TRUST"]
[null,null,null,null,null,null,null,null,null,null,null,null,null,null,"RJ6","CROYDON HEALTH SERVICES NHS TRUST",null,null,null,null,null,null,null,"Q71","RJ6","CROYDON HEALTH SERVICES NHS TRUST",null,null,null,"RYC","WARRINGTON AND HALTON HOSPITALS NHS FOUNDATION TRUST"]
[null,null,null,null,null,null,null,null,null,null,null,null,null,null,"RPY","THE ROYAL MARSDEN NHS FOUNDATION TRUST",null,null,null,null,null,null,null,"Q71","RPY","THE ROYAL MARSDEN NHS FOUNDATION TRUST",null,null,null,"RYD","WEST HERTFORDSHIRE HOSPITALS NHS TRUST"]
[null,null,null,null,null,null,null,null,null,null,null,null,null,null,"RKL","WEST LONDON MENTAL HEALTH NHS TRUST",null,null,null,null,null,null,null,"Q71","RKL","WEST LONDON MENTAL HEALTH NHS TRUST",null,null,null,"RYE","WEST LONDON MENTAL HEALTH NHS TRUST"]
[null,null,null,null,null,null,null,null,null,null,null,null,null,null,"RP4","GREAT ORMOND STREET HOSPITAL FOR CHILDREN NHS FOUNDATION TRUST",null,null,null,null,null,null,null,"Q71","RP4","GREAT ORMOND STREET HOSPITAL FOR CHILDREN NHS FOUNDATION TRUST",null,null,null,"RYF","WEST MIDDLESEX UNIVERSITY HOSPITAL NHS TRUST"]
[null,null,null,null,null,null,null,null,null,null,null,null,null,null,"TAF","CAMDEN AND ISLINGTON NHS FOUNDATION TRUST",null,null,null,null,null,null,null,"Q71","TAF","CAMDEN AND ISLINGTON NHS FOUNDATION TRUST",null,null,null,"RYG","WEST MIDLANDS AMBULANCE SERVICE NHS FOUNDATION TRUST"]
[null,null,null,null,null,null,null,null,null,null,null,null,null,null,"RAL","ROYAL FREE LONDON NHS FOUNDATION TRUST",null,null,null,null,null,null,null,"Q71","RAL","ROYAL FREE LONDON NHS FOUNDATION TRUST",null,null,null,"RYJ","WEST SUFFOLK NHS FOUNDATION TRUST"]
[null,null,null,null,null,null,null,null,null,null,null,null,null,null,"RVR","EPSOM AND ST HELIER UNIVERSITY HOSPITALS NHS TRUST",null,null,null,null,null,null,null,"Q71","RVR","EPSOM AND ST HELIER UNIVERSITY HOSPITALS NHS TRUST",null,null,null,"RYK","WESTERN SUSSEX HOSPITALS NHS FOUNDATION TRUST"]
[null,null,null,null,null,null,null,null,null,null,null,null,null,null,"RP6","MOORFIELDS EYE HOSPITAL NHS FOUNDATION TRUST",null,null,null,null,null,null,null,"Q71","RP6","MOORFIELDS EYE HOSPITAL NHS FOUNDATION TRUST",null,null,null,"RYR","WESTON AREA HEALTH NHS TRUST"]
[null,null,null,null,null,null,null,null,null,null,null,null,null,null,"R1H","BARTS HEALTH NHS TRUST",null,null,null,null,null,null,null,"Q71","R1H","BARTS HEALTH NHS TRUST",null,null,null,"RYV","WIRRAL COMMUNITY NHS TRUST"]
[null,null,null,null,null,null,null,null,null,null,null,null,null,null,"RAS","THE HILLINGDON HOSPITALS NHS FOUNDATION TRUST",null,null,null,null,null,null,null,"Q71","RAS","THE HILLINGDON HOSPITALS NHS FOUNDATION TRUST",null,null,null,"RYW","WIRRAL UNIVERSITY TEACHING HOSPITAL NHS FOUNDATION TRUST"]
[null,null,null,null,null,null,null,null,null,null,null,null,null,null,"RAP","NORTH MIDDLESEX UNIVERSITY HOSPITAL NHS TRUST",null,null,null,null,null,null,null,"Q71","RAP","NORTH MIDDLESEX UNIVERSITY HOSPITAL NHS TRUST",null,null,null,"RYX","WORCESTERSHIRE ACUTE HOSPITALS NHS TRUST"]
[null,null,null,null,null,null,null,null,null,null,null,null,null,null,"RKE","THE WHITTINGTON HOSPITAL NHS TRUST",null,null,null,null,null,null,null,"Q71","RKE","THE WHITTINGTON HOSPITAL NHS TRUST",null,null,null,"RYY","WORCESTERSHIRE HEALTH AND CARE NHS TRUST"]
[null,null,null,null,null,null,null,null,null,null,null,null,null,null,"RAX","KINGSTON HOSPITAL NHS FOUNDATION TRUST",null,null,null,null,null,null,null,"Q71","RAX","KINGSTON HOSPITAL NHS FOUNDATION TRUST",null,null,null,"TAD","WRIGHTINGTON, WIGAN AND LEIGH NHS FOUNDATION TRUST"]
[null,null,null,null,null,null,null,null,null,null,null,null,null,null,"RRP","BARNET, ENFIELD AND HARINGEY MENTAL HEALTH NHS TRUST",null,null,null,null,null,null,null,"Q71","RRP","BARNET, ENFIELD AND HARINGEY MENTAL HEALTH NHS TRUST",null,null,null,"TAE","WYE VALLEY NHS TRUST"]
[null,null,null,null,null,null,null,null,null,null,null,null,null,null,"RQY","SOUTH WEST LONDON AND ST GEORGE'S MENTAL HEALTH NHS TRUST",null,null,null,null,null,null,null,"Q71","RQY","SOUTH WEST LONDON AND ST GEORGE'S MENTAL HEALTH NHS TRUST",null,null,null,"TAF","YEOVIL DISTRICT HOSPITAL NHS FOUNDATION TRUST"]
[null,null,null,null,null,null,null,null,null,null,null,null,null,null,"RY9","HOUNSLOW AND RICHMOND COMMUNITY HEALTHCARE NHS TRUST",null,null,null,null,null,null,null,"Q71","RY9","HOUNSLOW AND RICHMOND COMMUNITY HEALTHCARE NHS TRUST",null,null,null,"TAH","YORK TEACHING HOSPITAL NHS FOUNDATION TRUST"]
[null,null,null,null,null,null,null,null,null,null,null,null,null,null,"RV5","SOUTH LONDON AND MAUDSLEY NHS FOUNDATION TRUST",null,null,null,null,null,null,null,"Q71","RV5","SOUTH LONDON AND MAUDSLEY NHS FOUNDATION TRUST",null,null,null,"TAJ","YORKSHIRE AMBULANCE SERVICE NHS TRUST"]